Cogmind - Beta 16.1 @@@ ROGUE MODE // 2026.02.28 @ 14:14:35 // Winter2019/RPGLIKE Player: badjay Result: Defending 0bPrime! Performance ------------- Evolutions (7) 3500 Regions Visited (22) 4400 Robots Destroyed (544) 2720 Value Destroyed (31392) 31392 Prototype IDs (208) 4160 Alien Tech Used (4) 800 Bonus (37580) 37580 TOTAL SCORE: 84552 Bonus ------- High Alert Combat Kills 9496 Follower Combat Kills 1294 Hunted by Unchained 1000 Destroyed Unchained 1000 Network Hubs Disabled 800 Registered with UFD 300 Met Optimus in HQ 500 Met Data Miner 300 Met Warlord at Base 500 MAIN.C Attacked Warlord 500 Warlord Defense Kills 2590 Built Enhanced Grunts 300 Met R17 at Research 2000 Met Optimus at Protoforge 1000 Executed Drillbomb Mission 10000 Optimus Survived to 0b1 3000 Win 3000 Cogmind --------- Core Integrity 377/600 Matter 300/300 Energy 1500/1500 System Corruption 0% Temperature Cool (-150) Movement Flying (22) Location 0bPrime Parts ------- > --- POWER (1) -------- Hybrid Graviton Reactor > --- PROPULSION (5) --- Cooled Cesium-ion Thruster Cooled Nuclear Pulse Thruster Experimental Biomechanical Wings Experimental Biomechanical Wings Concept Fieldthrust Drive > --- UTILITY (14) ----- Improved Cryofiber Web Experimental Terrain Scanner Experimental Melee Analysis Suite Concept Melee Reflex Suite Experimental Target Analyzer Experimental Core Analyzer Experimental Armor Integrity Analyzer Femtoactuators Advanced Actuator Array Experimental Reaction Control System Concept Phase Shift Module Graphene Brace Experimental Force Field Advanced Corruption Screen > --- WEAPON (4) ------- Power Maul Core Stripper Thermal Lance (fused) > --- INVENTORY (3) ---- UFD Drillbomb Peak State ------------ > --- POWER ------------ Hybrid Graviton Reactor > --- PROPULSION ------- Cooled Cesium-ion Thruster Cooled Nuclear Pulse Thruster Experimental Biomechanical Wings Experimental Biomechanical Wings Concept Fieldthrust Drive > --- UTILITY ---------- Improved Cryofiber Web Experimental Terrain Scanner Experimental Melee Analysis Suite Concept Melee Reflex Suite Experimental Target Analyzer Experimental Core Analyzer Experimental Armor Integrity Analyzer Femtoactuators Advanced Actuator Array Experimental Reaction Control System Concept Phase Shift Module Graphene Brace Experimental Force Field Advanced Corruption Screen > --- WEAPON ----------- Power Maul Core Stripper Thermal Lance > --- INVENTORY -------- UFD Drillbomb [Rating: 227] Favorites ----------- Power Angular Momentum Engine Engine Angular Momentum Engine Power Core Improved Fusion Compressor Reactor Light Antimatter Reactor Propulsion Cooled Cesium-ion Thruster Flight Unit Cooled Cesium-ion Thruster Utility Experimental Terrain Scanner Device Experimental Terrain Scanner Processor Surveybot 17 Chip Hackware Makeshift System Shield Weapon Power Maul Ballistic Gun Assault Rifle Impact Weapon Power Maul Slashing Weapon Sigix Broadsword Piercing Weapon Thermal Lance Build | -11 -10 -10 -9 -9 -6 -6 -6 -6 -5 -5 -5 -5 -5 -4 -4 -4 -4 -4 -4 -3 -3 -3 ------- Run | Yrd Mat Sub Rec Scr Fac Low Low Dat Pro Fac Upp Upp War Pro Fac Ext Cet Arc Hub Res Qua Frg Slots Evolved 19 | . 5 1 1 2 4 . . . . 2 . . . 1 1 . . . . 1 1 . Power . | . . . . . . . . . . . . . . . . . . . . . . . Propulsion 4 | . 2 . . 1 1 . . . . . . . . . . . . . . . . . Utility 12 | . 1 . 1 1 3 . . . . 2 . . . 1 1 . . . . 1 1 . Weapon 3 | . 2 1 . . . . . . . . . . . . . . . . . . . . Parts Attached 76 | 1 8 4 1 8 12 . . . . 8 1 1 3 1 7 . . . 1 5 3 12 Power 10 | . 1 1 . . 1 . . . . . . . 1 . 3 . . . . . . 3 Engine 3 | . 1 1 . . 1 . . . . . . . . . . . . . . . . . Core 2 | . . . . . . . . . . . . . . . 1 . . . . . . 1 Reactor 5 | . . . . . . . . . . . . . 1 . 2 . . . . . . 2 Propulsion 16 | . 2 1 . 1 3 . . . . 3 . . 2 . . . . . . 1 . 3 Treads . | . . . . . . . . . . . . . . . . . . . . . . . Leg . | . . . . . . . . . . . . . . . . . . . . . . . Wheel . | . . . . . . . . . . . . . . . . . . . . . . . Hover . | . . . . . . . . . . . . . . . . . . . . . . . Flight 16 | . 2 1 . 1 3 . . . . 3 . . 2 . . . . . . 1 . 3 Utility 38 | . 2 1 1 6 4 . . . . 5 1 1 . 1 4 . . . 1 4 1 6 Device 17 | . 1 . . 1 2 . . . . 4 1 1 . . 2 . . . 1 . . 4 Storage . | . . . . . . . . . . . . . . . . . . . . . . . Processor 20 | . 1 . 1 5 2 . . . . 1 . . . 1 2 . . . . 4 1 2 Hackware 1 | . . 1 . . . . . . . . . . . . . . . . . . . . Protection . | . . . . . . . . . . . . . . . . . . . . . . . Artifact . | . . . . . . . . . . . . . . . . . . . . . . . Weapon 12 | 1 3 1 . 1 4 . . . . . . . . . . . . . . . 2 . Energy Gun . | . . . . . . . . . . . . . . . . . . . . . . . Energy Cannon . | . . . . . . . . . . . . . . . . . . . . . . . Ballistic Gun 1 | 1 . . . . . . . . . . . . . . . . . . . . . . Ballistic Cannon . | . . . . . . . . . . . . . . . . . . . . . . . Launcher . | . . . . . . . . . . . . . . . . . . . . . . . Special Weapon . | . . . . . . . . . . . . . . . . . . . . . . . Impact Weapon 9 | . 3 1 . . 4 . . . . . . . . . . . . . . . 1 . Slashing Weapon 1 | . . . . . . . . . . . . . . . . . . . . . 1 . Piercing Weapon 1 | . . . . 1 . . . . . . . . . . . . . . . . . . Special Melee Weapon . | . . . . . . . . . . . . . . . . . . . . . . . Unidentified Prototypes 4 | . . . . . . . . . . . 1 . . . . . . . . . 3 . Parts Lost 5 | . . 1 . 1 . . . . . . . . . . 2 . . . . . . 1 Power 2 | . . . . . . . . . . . . . . . 1 . . . . . . 1 Propulsion . | . . . . . . . . . . . . . . . . . . . . . . . Utility 3 | . . 1 . 1 . . . . . . . . . . 1 . . . . . . . Weapon . | . . . . . . . . . . . . . . . . . . . . . . . Highest Loss Streak 1 | . . 1 . 1 . . . . . . . . . . 1 . . . . . . 1 To Critical Strikes . | . . . . . . . . . . . . . . . . . . . . . . . Average Backups . | . . . 1 . . 1 1 1 1 . . 1 . . . . . . . 1 . 1 Power . | . . . 1 . . . . . . . . . . . . . . . . . . . Propulsion . | . . . . . . . . . . . . . . . . . . . . . . . Utility . | . . . . . . 1 1 1 1 . . 1 . . . . . . . 1 . . Weapon . | . . . . . . . . . . . . . . . . . . . . . . . Tool/Special . | . . . . . . . . . . . . . . . . . . . . . . . Unused Backups 3 | . . 2 . . . . . . . . . . . . . . . . . . 1 . Power 2 | . . 2 . . . . . . . . . . . . . . . . . . . . Propulsion . | . . . . . . . . . . . . . . . . . . . . . . . Utility . | . . . . . . . . . . . . . . . . . . . . . . . Weapon . | . . . . . . . . . . . . . . . . . . . . . . . Tool/Special 1 | . . . . . . . . . . . . . . . . . . . . . 1 . Average Slot Usage (%) 95 | . 57 92 99 99 95 100 99 100 100 99 96 95 99 100 99 100 100 100 100 99 99 95 Engine 3 | . 3 10 9 7 6 5 4 5 5 5 5 5 4 . . . . . . . . . Reactor 1 | . . . . . . . . . . . . . . 4 3 4 4 4 4 4 4 3 Flight 24 | . 14 28 28 29 30 29 29 29 29 27 25 25 25 23 22 22 22 22 22 21 20 20 Device 21 | . 2 10 9 7 10 17 17 17 17 21 23 25 29 28 27 27 27 27 27 26 27 29 Processor 20 | . . . 4 15 20 23 23 23 23 22 20 20 20 22 26 27 27 27 27 29 29 28 Impact Weapon 17 | . 32 38 37 29 20 17 17 17 17 15 15 15 15 14 13 13 13 13 13 13 12 8 Piercing Weapon 3 | . . . . 1 6 5 5 5 5 5 5 5 5 4 4 4 4 4 4 4 4 4 Peak Build Rating 227 | 1 10 18 20 55 91 91 91 91 91 113 115 119 130 139 149 149 149 149 149 159 191 227 Average Rating 118 | . 6 14 18 29 67 90 90 91 91 104 111 115 126 138 145 149 149 149 148 154 164 208 On Entrance 97 | . 1 10 17 20 54 91 91 91 91 91 113 115 115 130 139 149 149 149 149 148 159 171 Avg Prop Armor Cover (%) . | . . . . . . . . . . . . . . . . . . . . . . . Naked Turns . | . . . . . . . . . . . . . . . . . . . . . . . Heaviest Build 58 | 2 13 16 16 17 31 30 30 30 30 37 38 38 43 42 48 43 43 43 47 47 48 58 Greatest Support 64 | 3 13 17 17 21 37 33 33 33 39 46 46 42 58 49 58 58 58 58 58 58 58 64 Greatest Overweight (x) . | . . . . . . . . . . . . . . . . . . . . . . . Average Overweight (x) . | . . . . . . . . . . . . . . . . . . . . . . . Largest Inventory Capacity 3 | . 1 1 1 1 1 1 1 1 2 2 2 2 2 2 2 2 2 2 2 2 2 3 Average Capacity 1 | . . 1 1 1 1 1 1 1 1 2 2 2 2 2 2 2 2 2 2 2 2 2 Most Carried 3 | . 1 1 1 1 1 1 1 1 2 2 2 2 2 2 2 2 2 2 2 2 2 3 Average Carried 1 | . . . 1 . . 1 1 1 1 1 1 1 1 1 1 1 1 1 1 2 1 1 Final Capacity 3 | . 1 1 1 1 1 1 1 1 2 2 2 2 2 2 2 2 2 2 2 2 2 3 Final Carried 3 | . 1 1 1 1 1 1 1 1 2 2 2 2 2 2 1 2 2 1 2 2 2 3 Class Distribution -------------------- 66% | Hacker-Sprinter 14% | Sprinter 13% | Gladiator 3% | Scavenger-Sprinter Dominant Class ---------------- Gladiator | -10/Materials Gladiator | -10/Subcaves Scavenger-Gladiator | -9/Recycling Scavenger-Sprinter | -9/Scraptown Sprinter | -6/Factory Sprinter | -6/Lower Caves Sprinter | -6/Lower Caves Sprinter | -6/Data Miner Sprinter | -5/Proximity Caves Hacker-Sprinter | -5/Factory Hacker-Sprinter | -5/Upper Caves Hacker-Sprinter | -5/Upper Caves Hacker-Sprinter | -5/Warlord Hacker-Sprinter | -4/Proximity Caves Hacker-Sprinter | -4/Factory Hacker-Sprinter | -4/Extension Hacker-Sprinter | -4/Cetus Hacker-Sprinter | -4/Archives Hacker-Sprinter | -4/Hub_04(d) Hacker-Sprinter | -3/Research Hacker-Sprinter | -3/Quarantine Hacker-Sprinter | -3/Protoforge Resources | -11 -10 -10 -9 -9 -6 -6 -6 -6 -5 -5 -5 -5 -5 -4 -4 -4 -4 -4 -4 -3 -3 -3 ----------- Run | Yrd Mat Sub Rec Scr Fac Low Low Dat Pro Fac Upp Upp War Pro Fac Ext Cet Arc Hub Res Qua Frg Matter Collected 1346 | 210 80 60 30 80 176 24 28 . 20 90 40 10 40 10 128 . . . 10 60 110 140 Remotely . | . . . . . . . . . . . . . . . . . . . . . . . Salvage Created 24905 | . 380 430 598 98 2213 200 223 . 464 2300 529 749 931 235 3301 886 418 595 348 2454 1122 6431 Parts 1060 | . 20 9 15 7 108 9 7 . 21 99 24 33 33 14 127 61 5 21 17 73 30 327 Haulers Intercepted 13 | . 1 . . . 3 . . . . 4 . . . . . . . . . 4 1 . Recyclers Shooed 1 | . . . . . . . . . . 1 . . . . . . . . . . . . Parts Field Recycled . | . . . . . . . . . . . . . . . . . . . . . . . Retrieved Matter . | . . . . . . . . . . . . . . . . . . . . . . . Parts Self-Destructed 100 | . . 3 . . . 8 7 . 20 . 21 28 . 13 . . . . . . . . Prevented 11 | . . . . . . 1 . . 1 . 3 5 . 1 . . . . . . . . Parts Restored . | . . . . . . . . . . . . . . . . . . . . . . . Kills | -11 -10 -10 -9 -9 -6 -6 -6 -6 -5 -5 -5 -5 -5 -4 -4 -4 -4 -4 -4 -3 -3 -3 ------- Run | Yrd Mat Sub Rec Scr Fac Low Low Dat Pro Fac Upp Upp War Pro Fac Ext Cet Arc Hub Res Qua Frg Combat Hostiles Destroyed 481 | . 16 13 13 1 53 5 8 . 14 44 19 19 23 6 63 21 4 1 7 31 12 108 Melee 388 | . 10 6 7 1 43 4 7 . 11 38 19 18 15 5 53 18 2 1 6 23 10 91 AOE 2 | . . . . . . . . . . . . . 2 . . . . . . . . . Classes Destroyed 29 | . 5 3 3 1 4 1 . . . . 1 . 1 1 . 1 . . . 1 2 5 Worker 1 | . . . . . . . . . . . . . . . . 1 . . . . . . Hauler 13 | . 1 . . . 3 . . . . 4 . . . . . . . . . 4 1 . Recycler 2 | . 1 . . . . . . . . . . . . . 1 . . . . . . . Operator 5 | . . . . . 2 . . . . . . . . . . . . . 1 . . 2 Drone 1 | . . . . . . . . . . . . . . 1 . . . . . . . . Turret 2 | . . 2 . . . . . . . . . . . . . . . . . . . . Watcher 33 | . 3 . . . 4 . . . . 7 . . . . 5 2 1 . 1 5 3 2 Swarmer 108 | . 8 4 1 . 10 3 4 . 5 8 10 10 1 . 30 . . . . 8 . 6 Cutter 1 | . . . . . 1 . . . . . . . . . . . . . . . . . Saboteur 2 | . . . . . . . . . . . . . . . . . . . . . . 2 Grunt 152 | . 8 . . . 30 . 3 . 6 20 7 6 12 3 16 5 . . 4 9 8 15 Brawler 6 | . . . . . . . . . . . 1 1 1 . . . . . . . 1 2 Duelist 8 | . . . . . . 1 1 . . . . . . . . . . . . 1 . 5 Protector 7 | . . . 2 . . . . . . . . . 4 . . . . . . . . 1 Researcher 2 | . . . . . . . . . . . . . . . . . . . . . 1 1 Sentry 59 | . . 1 7 . 5 1 . . . 6 1 1 . . 4 8 . 1 3 8 1 12 Demolisher 2 | . . . 1 . . . . . . . . . 1 . . . . . . . . . Specialist 1 | . . . . . . . . . . . . . 1 . . . . . . . . . Hunter 39 | . . . . . 2 . . . 2 5 . . 3 2 8 2 . . . 5 . 10 Programmer 23 | . . . 2 . 4 . . . . 4 . . . . 4 . . . . . . 9 Behemoth 8 | . . . . . 1 . . . 1 1 . 1 . . 1 2 . . . . . 1 Cetus Guard 4 | . . . . . . . . . . . . . . . . . 4 . . . . . Enhanced Grunt 4 | . . . . . . . . . . . . . . . . . . 4 . . . . Hotshot 8 | . . . . . . . . . . . . . . . . . . . . . . 8 Decapitator 11 | . . . . . . . . . . . . . . . . . . . . . . 11 Immortal 2 | . . . . . . . . . . . . . . . . . . . . . . 2 Overlord 1 | . . . . . . . . . . . . . . . . . . . . . . 1 Striker 10 | . . . . . . . . . . . . . . . . . . . . 1 . 9 Executioner 8 | . . . . . . . . . . . . . . . . . . . . . . 8 Alpha 7 2 | . . . . . . . . . . . . . . . . . . . . . 1 1 V-Series 5 | . . . . . . . . . . . . . . . . . . . . . . 5 Subdweller 8 | . . 8 . . . . . . . . . . . . . . . . . . . . Scrapper 1 | . . . . 1 . . . . . . . . . . . . . . . . . . Tinkerer 1 | . . . . . . . . . . . . . . . . . . . . . . 1 Thug 2 | . . . . . . . . . . . . . . . . 2 . . . . . . Butcher 1 | . . . . . . . . . . . . . . . . 1 . . . . . . Guerrilla 1 | . . . . . . . . . . . . . . . . 1 . . . . . . Best Kill Streak 13 | . 9 4 4 1 8 3 4 . 4 8 11 11 8 6 13 8 4 1 3 9 5 10 Combat Bots Only 13 | . 7 3 4 1 7 3 4 . 4 8 11 11 8 6 13 8 3 1 3 5 5 10 Max Kills in Single Turn 3 | . 1 1 1 1 2 1 2 . 1 1 2 2 1 1 2 1 1 1 1 2 1 3 Gunslinging . | . . . . . . . . . . . . . . . . . . . . . . . Exploded 1 | . . . . . . . . . . . . . 1 . . . . . . . . . Melee 3 | . 1 1 1 1 2 1 2 . 1 1 2 2 1 1 2 1 1 1 1 2 1 3 Uniques/NPCs Destroyed 1 | . . . . . . . . . . . . . . . . . . . . . 1 . 6S-H0T (-3/Quarantine) Combat | -11 -10 -10 -9 -9 -6 -6 -6 -6 -5 -5 -5 -5 -5 -4 -4 -4 -4 -4 -4 -3 -3 -3 -------- Run | Yrd Mat Sub Rec Scr Fac Low Low Dat Pro Fac Upp Upp War Pro Fac Ext Cet Arc Hub Res Qua Frg Hostile Shots Fired 1891 | . 92 134 29 18 196 32 38 . 39 119 41 70 131 39 243 79 16 6 38 91 76 364 Missed 1054 | . 41 73 9 5 108 22 17 . 16 61 17 44 91 34 145 38 7 5 25 53 29 214 Hits 837 | . 51 61 20 13 88 10 21 . 23 58 24 26 40 5 98 41 9 1 13 38 47 150 Melee 24 | . . . . . . . 3 . . . . 2 2 . . . . . . . 1 16 Projectile 813 | . 51 61 20 13 88 10 18 . 23 58 24 24 38 5 98 41 9 1 13 38 46 134 AOE 16 | . . . 1 . . . . . . 1 . . 3 . . . . . . . . 11 Critical Strikes 52 | . 1 2 1 . 1 . 1 . 1 2 . 2 1 . 3 2 2 . . . 8 25 Actively Blocked 37 | . . . . . . . . . . . . . . . . 2 2 . . . 8 25 Damage Taken 16137 | . 513 830 328 103 1442 91 377 . 378 1176 399 463 849 72 2029 997 328 29 220 606 872 4035 Core 13371 | . 435 709 278 84 1220 75 321 . 318 964 320 384 694 61 1651 824 263 29 171 510 713 3347 Absorbed by Shields 1953 | . . . . . . . . . . . . . . . . . 12 . 81 223 205 1432 Redirected to Core 9705 | . 238 417 180 61 776 43 201 . 218 739 279 276 554 40 1311 634 242 . 171 329 561 2435 Core Remaining (%) 89 | 100 . . . 86 . . . . 100 . . . . 100 . . . . 88 . . 62 Volleys Fired . | . . . . . . . . . . . . . . . . . . . . . . . Largest . | . . . . . . . . . . . . . . . . . . . . . . . Hottest . | . . . . . . . . . . . . . . . . . . . . . . . Shots Fired . | . . . . . . . . . . . . . . . . . . . . . . . Gun . | . . . . . . . . . . . . . . . . . . . . . . . Cannon . | . . . . . . . . . . . . . . . . . . . . . . . Launcher . | . . . . . . . . . . . . . . . . . . . . . . . Special . | . . . . . . . . . . . . . . . . . . . . . . . Kinetic . | . . . . . . . . . . . . . . . . . . . . . . . Thermal . | . . . . . . . . . . . . . . . . . . . . . . . Explosive . | . . . . . . . . . . . . . . . . . . . . . . . Electromagnetic . | . . . . . . . . . . . . . . . . . . . . . . . Robot Hit Streak . | . . . . . . . . . . . . . . . . . . . . . . . Robot Miss Streak . | . . . . . . . . . . . . . . . . . . . . . . . Penetration Max . | . . . . . . . . . . . . . . . . . . . . . . . Secondary Targets . | . . . . . . . . . . . . . . . . . . . . . . . Shots Hit Robots 1096 | . 38 58 41 1 116 10 13 . 24 91 30 34 45 11 115 49 18 10 18 72 51 251 Core Hits 400 | . 5 6 4 1 43 4 5 . 10 34 11 15 16 4 51 20 4 4 7 29 19 108 Critical Kills 30 | . 2 1 . . 3 1 . . . 5 1 . 1 . 2 1 . 1 . 1 1 10 Critical Parts Destroyed 87 | . 8 13 12 . 9 . . . 4 2 3 1 1 2 4 5 3 . 1 8 4 7 Critical Strikes 126 | . 10 19 13 . 12 1 . . 4 7 4 1 2 2 6 7 3 1 1 10 5 18 Meltdown 16 | . . . . . 1 . . . . 3 . . 1 . 1 1 . 1 . 1 . 7 Smash 110 | . 10 19 13 . 11 1 . . 4 4 4 1 1 2 5 6 3 . 1 9 5 11 Melee Attacks 1532 | . 54 107 56 12 150 11 20 . 29 124 47 46 54 14 169 67 24 14 31 111 75 317 Kinetic 42 | . . . . . . . . . . . . . . . . . . . . . . 42 Thermal 780 | . . . . 6 85 8 13 . 20 77 27 29 33 8 99 36 12 7 17 61 39 203 Impact 710 | . 54 107 56 6 65 3 7 . 9 47 20 17 21 6 70 31 12 7 14 50 36 72 Slashing . | . . . . . . . . . . . . . . . . . . . . . . . Piercing . | . . . . . . . . . . . . . . . . . . . . . . . Sneak Attacks 134 | . 2 . 11 . 11 . . . 2 17 4 . 1 . 7 12 . 8 5 11 7 36 Combat Hostiles 53 | . . . . . 5 . . . 2 13 . . 1 . 5 2 . 1 5 5 2 12 Follow-up Attacks 291 | . 9 16 11 . 29 2 3 . 4 22 8 6 12 3 32 13 7 3 6 23 22 60 Martial Strikes 39 | . . . . . . . . . . . . . . . . . . . . . . 39 Damage Inflicted 94594 | . 1596 2575 1849 72 9492 778 1039 . 2434 9271 2841 3174 4512 1001 10967 4831 1279 1236 1737 6822 4570 22518 Guns . | . . . . . . . . . . . . . . . . . . . . . . . Cannons . | . . . . . . . . . . . . . . . . . . . . . . . Explosions . | . . . . . . . . . . . . . . . . . . . . . . . Melee 94594 | . 1596 2575 1849 72 9492 778 1039 . 2434 9271 2841 3174 4512 1001 10967 4831 1279 1236 1737 6822 4570 22518 Ramming . | . . . . . . . . . . . . . . . . . . . . . . . Kinetic 2333 | . . . . . . . . . . . . . . . . . . . . . . 2333 Thermal 69958 | . . . . 72 7094 663 831 . 2044 7701 2304 2827 3633 824 8807 4052 789 934 1352 5372 3158 17501 Explosive . | . . . . . . . . . . . . . . . . . . . . . . . Electromagnetic . | . . . . . . . . . . . . . . . . . . . . . . . Impact 22303 | . 1596 2575 1849 . 2398 115 208 . 390 1570 537 347 879 177 2160 779 490 302 385 1450 1412 2684 Slashing . | . . . . . . . . . . . . . . . . . . . . . . . Piercing . | . . . . . . . . . . . . . . . . . . . . . . . Highest Corruption 3 | . . . . . 3 3 3 3 3 1 . . . . . . . . . . . . Average Corruption 2 | . . . . . 1 3 3 3 3 1 . . . . . . . . . . . . Corruption Purged 1 | . . . . . . . . . . 1 . . . . . . . . . . . . Corruption Blocked 20 | . . . . . . . . . . . . . . . 5 . . . 1 . . 14 Effects 28 | . . . . . 8 5 8 1 6 . . . . . . . . . . . . . Message Errors 9 | . . . . . 3 . 5 1 . . . . . . . . . . . . . . Matter Fused 9 | . . . . . 3 2 1 . 3 . . . . . . . . . . . . . Heat Flow Errors 1 | . . . . . 1 . . . . . . . . . . . . . . . . . Energy Discharges 2 | . . . . . 1 1 . . . . . . . . . . . . . . . . Parts Rejected 2 | . . . . . . 1 1 . . . . . . . . . . . . . . . Parts Fused 1 | . . . . . . . . . 1 . . . . . . . . . . . . . Data Loss (minor) 2 | . . . . . . 1 1 . . . . . . . . . . . . . . . Data Loss (major) 2 | . . . . . . . . . 2 . . . . . . . . . . . . . Overload Shots . | . . . . . . . . . . . . . . . . . . . . . . . Overflow Damage 15524 | . 614 821 663 . 1954 34 158 . 472 1846 674 670 480 264 1715 605 280 57 235 1158 668 2156 Projectiles . | . . . . . . . . . . . . . . . . . . . . . . . Explosions . | . . . . . . . . . . . . . . . . . . . . . . . Melee 15524 | . 614 821 663 . 1954 34 158 . 472 1846 674 670 480 264 1715 605 280 57 235 1158 668 2156 Knockbacks 89 | . 7 11 7 . 10 . . . 1 6 2 1 4 2 5 1 1 1 2 7 9 12 Impact 86 | . 7 11 7 . 9 . . . 1 5 2 . 4 2 5 1 1 1 2 7 9 12 Kinetic . | . . . . . . . . . . . . . . . . . . . . . . . Secondary 3 | . . . . . 1 . . . . 1 . 1 . . . . . . . . . . Self-Inflicted Damage . | . . . . . . . . . . . . . . . . . . . . . . . Shots . | . . . . . . . . . . . . . . . . . . . . . . . Rammed . | . . . . . . . . . . . . . . . . . . . . . . . Targets Rammed . | . . . . . . . . . . . . . . . . . . . . . . . Kicked . | . . . . . . . . . . . . . . . . . . . . . . . Crushed . | . . . . . . . . . . . . . . . . . . . . . . . Highest Temperature 458 | . . . . 266 384 41 284 . 280 247 316 317 229 127 371 337 294 31 320 367 . 458 Average Temperature 107 | . . . . 99 102 19 106 . 83 82 105 139 88 61 118 108 126 16 97 105 . 135 Received Heat Transfer 2123 | . 96 270 63 24 324 30 45 . 84 132 63 106 147 . 138 81 30 9 24 58 41 358 Effects 21 | . . . . . 4 . . . . . . 1 2 . 6 . 2 . . 6 . . Energy Bleed 5 | . . . . . 1 . . . . . . 1 . . 1 . . . . 2 . . Interference 16 | . . . . . 3 . . . . . . . 2 . 5 . 2 . . 4 . . Siege Activations . | . . . . . . . . . . . . . . . . . . . . . . . Martial Activations . | . . . . . . . . . . . . . . . . . . . . . . . Shielding Activations . | . . . . . . . . . . . . . . . . . . . . . . . Robots Disrupted 2 | . . . . . . . . . . . . . . . . . . . . . . 2 Combat Hostiles 2 | . . . . . . . . . . . . . . . . . . . . . . 2 Robots Corrupted 79 | . 9 11 7 . 8 . . . 3 4 . . 4 1 10 3 2 1 2 8 2 4 Combat Hostiles 66 | . 6 10 6 . 8 . . . 3 4 . . 4 1 8 2 1 . 1 7 2 3 Parts Fried 100 | . 10 9 11 . 7 . . . 3 4 . 1 10 1 11 1 1 2 4 10 6 9 Impact Corruptions 257 | . 26 26 37 . 33 1 . . 7 16 5 4 12 3 24 8 5 1 4 19 10 16 Robots Melted 26 | . . . . . 3 1 1 . . 4 . 1 2 . 2 1 1 1 . 2 . 7 Combat Hostiles 21 | . . . . . 2 1 1 . . 2 . 1 2 . 2 1 1 . . 1 . 7 Parts Melted 204 | . . . . . 19 3 1 . 10 19 3 12 9 . 22 10 . 5 5 21 5 60 Heat Transferred 78558 | . . . . 80 8880 960 1080 . 2160 8280 2640 3360 3060 960 9840 4320 1080 840 1440 5880 2940 20758 Parts Sabotaged . | . . . . . . . . . . . . . . . . . . . . . . . Parts Stolen . | . . . . . . . . . . . . . . . . . . . . . . . Parts Stripped 61 | . . . . . . . . . . . . . . . . . . . . . . 61 Power Chain Reactions . | . . . . . . . . . . . . . . . . . . . . . . . Alert | -11 -10 -10 -9 -9 -6 -6 -6 -6 -5 -5 -5 -5 -5 -4 -4 -4 -4 -4 -4 -3 -3 -3 ------- Run | Yrd Mat Sub Rec Scr Fac Low Low Dat Pro Fac Upp Upp War Pro Fac Ext Cet Arc Hub Res Qua Frg Maximum Alert Level 5 | . 1 . . . 3 . . . . 2 . . . . 3 3 2 2 2 2 3 5 Low Security (%) 22 | 100 89 . 100 . 13 . . . . 47 . . . . 16 . . . 24 5 . . Level 1 23 | . 10 . . . 17 . . . . 48 . . . . 24 15 1 90 71 78 38 . Level 2 18 | . . . . . 32 . . . . 4 . . . . 27 23 98 10 3 15 42 13 Level 3 18 | . . . . . 36 . . . . . . . . . 31 61 . . . . 19 25 Level 4 5 | . . . . . . . . . . . . . . . . . . . . . . 18 Level 5 11 | . . . . . . . . . . . . . . . . . . . . . . 42 High Security . | . . . . . . . . . . . . . . . . . . . . . . . Max Security . | . . . . . . . . . . . . . . . . . . . . . . . Peak Influence 2812 | . 218 . 122 . 1075 . . . . 566 . . . . 951 822 578 407 434 517 810 2812 Initial 446 | . . . . . . . . . . 144 . . . . 187 335 446 223 124 222 247 420 Average 717 | . 129 . 61 . 561 . . . . 211 . . . . 516 657 473 360 251 312 495 1601 Influence Increases 17933 | . 467 245 321 . 1886 167 180 . 390 1557 445 480 1450 140 2068 953 312 194 760 1134 867 3917 Destroy 0b10 Robot/C 10000 | . 320 140 220 . 1060 120 160 . 280 880 380 380 380 100 1280 520 160 80 140 680 420 2300 Destroy 0b10 Robot/NC 345 | . 25 . 20 . 45 . . . 5 55 . 5 20 5 30 10 10 . 10 45 30 30 Destroy Leader 1520 | . 68 . . . 234 10 20 . 30 222 20 50 . 20 230 54 . . 52 148 38 324 Allied During Kill 658 | . . . . . . 7 . . . 25 . . . . 6 303 99 80 . . 101 37 Successful Hack 978 | . 38 . 46 . 93 . . . . 96 . . . . 37 39 7 . 50 184 60 328 Select Force Hacks 200 | . . . . . . . . . . . . . . . . . . . 200 . . . Disable Machine 210 | . . . . . . . . . . . . . . . . 15 . 15 . . 105 75 Anti-Garrison Action 150 | . . . . . . . . . . . . . . . . . . . . . . 150 Destroy Structure 212 | . 1 . 5 . 4 . . . . 54 . . . . 20 12 36 4 8 32 8 28 Advance Influence 150 | . . . . . . . . . . . . . . . 150 . . . . . . . Partial Spotted 705 | . . . . . 60 . . . . 165 . . . . 90 . . 15 165 15 30 165 Lose Combat Pursuer 2805 | . 15 105 30 . 390 30 . . 75 60 45 45 1050 15 225 . . . 135 30 75 480 Influence Decreases 15203 | . 298 414 207 114 913 481 286 553 160 1560 323 281 818 1260 1443 840 552 395 693 1118 559 1935 Entered New Map 5218 | . . 82 . 114 . 361 126 553 . 86 85 67 548 1180 23 350 352 335 233 202 193 328 Time Decay 5475 | . 298 322 207 . 463 120 160 . 160 514 238 214 270 80 490 230 160 60 150 386 246 707 Lost Part 40 | . . 10 . . . . . . . . . . . . 20 . . . . . . 10 Lost Ally 1020 | . . . . . . . . . . 60 . . . . 10 260 40 . 10 80 120 440 Purge Threat 3450 | . . . . . 450 . . . . 900 . . . . 900 . . . 300 450 . 450 Squads Dispatched 91 | . 4 . . . 16 . . . . 17 . . . . 13 3 . . 9 8 7 14 Investigation 54 | . 2 . . . 12 . . . . 10 . . . . 7 2 . . 6 7 2 6 Extermination 17 | . . . . . 2 . . . . 5 . . . . 3 . . . 1 1 2 3 Reinforcement 11 | . 2 . . . . . . . . 2 . . . . 1 . . . 2 . 2 2 Assault 8 | . . . . . 1 . . . . . . . . . 2 1 . . . . 1 3 Garrison 1 | . . . . . 1 . . . . . . . . . . . . . . . . . Intercept . | . . . . . . . . . . . . . . . . . . . . . . . Searches Triggered . | . . . . . . . . . . . . . . . . . . . . . . . Unchained Authorized 4 | . . . . . . . . . . . . . . . 1 1 . . 1 . 1 . Data Miner Redirects 1 | . . . . . . . . . . . . . . . . . . . . . . 1 Construction Impeded . | . . . . . . . . . . . . . . . . . . . . . . . Haulers Reinforced 1 | . . . . . . . . . . 1 . . . . . . . . . . . . Active Scanning Responses . | . . . . . . . . . . . . . . . . . . . . . . . Cargo Convoy Interrupts . | . . . . . . . . . . . . . . . . . . . . . . . Stealth | -11 -10 -10 -9 -9 -6 -6 -6 -6 -5 -5 -5 -5 -5 -4 -4 -4 -4 -4 -4 -3 -3 -3 --------- Run | Yrd Mat Sub Rec Scr Fac Low Low Dat Pro Fac Upp Upp War Pro Fac Ext Cet Arc Hub Res Qua Frg Distress Signals 34 | . 1 . . . 7 . . . . . . . 3 1 2 2 2 . 2 8 1 5 Communications Jammed . | . . . . . . . . . . . . . . . . . . . . . . . Distress Signals . | . . . . . . . . . . . . . . . . . . . . . . . Times Spotted 786 | . 27 24 8 9 90 8 8 . 14 56 19 22 111 8 88 23 10 3 21 52 26 159 Peak Tracking Total 18 | . 5 6 4 7 6 3 4 . 5 7 7 9 18 3 9 6 5 2 13 8 6 12 Tactical Retreats 85 | . 1 4 2 . 13 1 . . 2 3 2 2 19 1 5 2 . . 4 2 4 18 ID Masks Used 1 | . . . . . 1 . . . . . . . . . . . . . . . . . IFF Responses 5 | . . . . . 5 . . . . . . . . . . . . . . . . . Traps | -11 -10 -10 -9 -9 -6 -6 -6 -6 -5 -5 -5 -5 -5 -4 -4 -4 -4 -4 -4 -3 -3 -3 ------- Run | Yrd Mat Sub Rec Scr Fac Low Low Dat Pro Fac Upp Upp War Pro Fac Ext Cet Arc Hub Res Qua Frg Traps Triggered 21 | . 3 2 . . 1 . . . . . . . . . 1 2 . . . . . 12 Indirectly . | . . . . . . . . . . . . . . . . . . . . . . . Trap Hack Attempts . | . . . . . . . . . . . . . . . . . . . . . . . Triggered . | . . . . . . . . . . . . . . . . . . . . . . . Disarmed . | . . . . . . . . . . . . . . . . . . . . . . . Reprogrammed . | . . . . . . . . . . . . . . . . . . . . . . . Reused . | . . . . . . . . . . . . . . . . . . . . . . . Traps Extracted . | . . . . . . . . . . . . . . . . . . . . . . . Installed . | . . . . . . . . . . . . . . . . . . . . . . . Triggered . | . . . . . . . . . . . . . . . . . . . . . . . Machines | -11 -10 -10 -9 -9 -6 -6 -6 -6 -5 -5 -5 -5 -5 -4 -4 -4 -4 -4 -4 -3 -3 -3 ---------- Run | Yrd Mat Sub Rec Scr Fac Low Low Dat Pro Fac Upp Upp War Pro Fac Ext Cet Arc Hub Res Qua Frg Machines Disabled 22 | . . . . 2 . . . . . . . . . . . 3 1 1 . . 8 7 Max in Single Turn 1 | . . . . 1 . . . . . . . . . . . . 1 . . . 1 1 Garrison Access 8 | . . . . . 2 . . . . 1 . . . . 3 . . . 1 . . 1 Network Hub 4 | . . . . . . . . . . . . . . . . . . . 4 . . . Machines Repaired . | . . . . . . . . . . . . . . . . . . . . . . . Machines Dismantled . | . . . . . . . . . . . . . . . . . . . . . . . Machines Sabotaged 4 | . . . . . . . . . . . . . . . . . . . 4 . . . Overloaded Fab Kills . | . . . . . . . . . . . . . . . . . . . . . . . Hacking | -11 -10 -10 -9 -9 -6 -6 -6 -6 -5 -5 -5 -5 -5 -4 -4 -4 -4 -4 -4 -3 -3 -3 --------- Run | Yrd Mat Sub Rec Scr Fac Low Low Dat Pro Fac Upp Upp War Pro Fac Ext Cet Arc Hub Res Qua Frg Machines Accessed 193 | . 7 1 7 8 30 1 . 4 1 29 2 2 5 1 30 3 3 . 10 19 9 21 Terminals 112 | . 6 . 6 . 16 . . . 1 17 1 1 . 1 17 3 3 . 9 11 7 13 Fabricators 11 | . . . . . . . . . . 1 . . . . 3 . . . . 3 . 4 Repair Stations . | . . . . . . . . . . . . . . . . . . . . . . . Recycling Units 27 | . 1 . 1 . 8 . . . . 6 . . . . 6 . . . . 2 . 3 Scanalyzers 8 | . . . . . 3 . . . . 2 . . . . 2 . . . . . 1 . Garrison Access 14 | . . . . . 3 . . . . 3 . . . . 2 . . . 1 3 1 1 Total Hacks 774 | . 20 3 41 60 73 4 . 32 1 99 9 2 9 1 81 11 9 . 46 100 54 119 Successful 501 | . 13 3 23 60 42 4 . 32 1 62 9 2 9 1 49 6 6 . 38 56 28 57 Failed 271 | . 7 . 18 . 30 . . . . 36 . . . . 32 5 3 . 8 44 26 62 Catastrophic 31 | . 1 . 2 . 2 . . . . 2 . . . . 3 . . . . 8 2 11 Database Lockouts 2 | . . . . . 1 . . . . 1 . . . . . . . . . . . . Manual 433 | . 18 . 34 . 43 . . . . 52 . . 1 . 58 9 1 . 36 74 37 70 Terminals 510 | . 18 . 39 . 46 . . . 1 74 8 1 . 1 61 11 9 . 42 63 43 93 Fabricators 30 | . . . . . . . . . . 4 . . . . 5 . . . . 11 . 10 Repair Stations . | . . . . . . . . . . . . . . . . . . . . . . . Recycling Units 48 | . 2 . 2 . 12 . . . . 10 . . . . 7 . . . . 5 . 10 Scanalyzers 17 | . . . . . 6 . . . . 4 . . . . 2 . . . . . 5 . Garrison Access 59 | . . . . . 9 . . . . 7 . . . . 6 . . . 4 21 6 6 Terminal Hacks 248 | . 4 3 8 60 12 4 . 32 1 24 9 2 9 1 14 . 6 . 12 15 10 22 Record 102 | . . 3 . 59 . 4 . 11 1 . 8 1 7 1 . . 5 . . . 1 1 Part Schematic 17 | . . . . . 1 . . 12 . 2 . . . . . . . . . 1 . 1 Robot Schematic 13 | . . . 2 . . . . 6 . 2 . . . . . . . . . 1 . 2 Robot Analysis 4 | . . . 1 . . . . . . 2 . . . . . . . . . . . 1 Prototype ID Bank 16 | . 1 . 2 . 2 . . 3 . 3 . . . . 2 . . . . 1 1 1 Open Door 7 | . . . . . . . . . . . 1 1 2 . . . 1 . . 1 1 . Level Access Points 2 | . . . . . . . . . . . . . . . . . . . 1 . 1 . Branch Access Points 6 | . 1 . 1 . . . . . . . . . . . . . . . 1 . 2 1 Machine Index 1 | . . . . . . . . . . . . . . . . . . . . 1 . . Terminal Index 4 | . . . 1 . 1 . . . . 1 . . . . . . . . . . . 1 Fabricator Index 2 | . . . . . . . . . . . . . . . . . . . . . 1 1 Scanalyzer Index 1 | . . . . . . . . . . . . . . . 1 . . . . . . . Alert Level 24 | . 1 . . . 2 . . . . 5 . . . . 3 . . . 4 3 3 3 Unreport Threat 23 | . . . . . 3 . . . . 6 . . . . 6 . . . 2 3 . 3 Assault Status 1 | . . . . . . . . . . . . . . . . . . . . . . 1 Recall Extermination 2 | . . . . . . . . . . . . . . . . . . . 2 . . . Recall Assault 2 | . . . . . . . . . . . . . . . . . . . . . . 2 Hauler Manifests 9 | . 1 . 1 . 1 . . . . 1 . . . . 1 . . . 2 1 . 1 Registered Components 5 | . . . . . 1 . . . . 1 . . . . 1 . . . . 1 . 1 Registered Prototypes 5 | . . . . . 1 . . . . 1 . . . . . . . . . 2 . 1 Proto ID Catalog 2 | . . . . 1 . . . . . . . . . . . . . . . . . 1 Fabricator Hacks 5 | . . . . . . . . . . 2 . . . . 2 . . . . 1 . . Network Status 2 | . . . . . . . . . . . . . . . 1 . . . . 1 . . Load Schematic 2 | . . . . . . . . . . 1 . . . . 1 . . . . . . . Build 1 | . . . . . . . . . . 1 . . . . . . . . . . . . Repair Station Hacks . | . . . . . . . . . . . . . . . . . . . . . . . Recycling Unit Hacks 2 | . . . 1 . . . . . . . . . . . . . . . . . . 1 Report Inventory 2 | . . . 1 . . . . . . . . . . . . . . . . . . 1 Scanalyzer 8 | . . . . . 4 . . . . 2 . . . . 2 . . . . . . . Insert Component 1 | . . . . . 1 . . . . . . . . . . . . . . . . . Analyze 1 | . . . . . 1 . . . . . . . . . . . . . . . . . Retrieve Study 6 | . . . . . 2 . . . . 2 . . . . 2 . . . . . . . Garrison Access Hacks 6 | . . . . . 2 . . . . 1 . . . . 2 . . . 1 . . . Seal Access 6 | . . . . . 2 . . . . 1 . . . . 2 . . . 1 . . . Unauthorized Hacks 231 | . 9 . 14 . 24 . . . . 32 . . . . 29 6 . . 25 40 18 34 Terminals 165 | . 8 . 13 . 15 . . . . 22 . . . . 19 6 . . 23 21 14 24 Track 23 | . . . 2 . . . . . . 3 . . . . 1 . . . 4 4 3 6 Assimilate 16 | . 1 . . . . . . . . 3 . . . . 4 . . . 2 2 2 2 Botnet 34 | . 2 . 3 . 4 . . . . 4 . . . . 4 3 . . 3 4 3 4 Detonate 1 | . . . . . . . . . . . . . . . . . . . 1 . . . Disrupt 8 | . . . 1 . . . . . . 1 . . . . . 1 . . 1 2 . 2 Operators 8 | . . . 1 . . . . . . 1 . . . . 1 . . . 1 1 2 1 Skim 69 | . 5 . 6 . 11 . . . . 10 . . . . 9 2 . . 5 8 4 9 Sabotage 6 | . . . . . . . . . . . . . . . . . . . 6 . . . Fabricators 14 | . . . . . . . . . . 2 . . . . 3 . . . . 4 . 5 Prioritize 2 | . . . . . . . . . . 1 . . . . . . . . . 1 . . Fabnet 11 | . . . . . . . . . . 1 . . . . 3 . . . . 3 . 4 Haulers 1 | . . . . . . . . . . . . . . . . . . . . . . 1 Repair Stations . | . . . . . . . . . . . . . . . . . . . . . . . Recycling Units 26 | . 1 . 1 . 7 . . . . 6 . . . . 6 . . . . 2 . 3 Reject 2 | . 1 . 1 . . . . . . . . . . . . . . . . . . . Fedlink 24 | . . . . . 7 . . . . 6 . . . . 6 . . . . 2 . 3 Scanalyzers 1 | . . . . . . . . . . . . . . . . . . . . . 1 . Researchers 1 | . . . . . . . . . . . . . . . . . . . . . 1 . Garrison Access 25 | . . . . . 2 . . . . 2 . . . . 1 . . . 2 13 3 2 Broadcast 6 | . . . . . 1 . . . . . . . . . . . . . 1 3 1 . Decoy 2 | . . . . . . . . . . . . . . . . . . . . 2 . . Redirect 2 | . . . . . . . . . . . . . . . . . . . . 2 . . Reprogram 6 | . . . . . . . . . . 1 . . . . . . . . . 3 1 1 Intercept 2 | . . . . . . . . . . . . . . . . . . . . 2 . . Watchers 7 | . . . . . 1 . . . . 1 . . . . 1 . . . 1 1 1 1 Data Cores Recovered 3 | . . . . . 2 . . . . . . . . . . . . . 1 . . . Used 1 | . . . . . . . . . . . . . . . . . . . 1 . . . Hacking Detections 119 | . 6 . 7 . 23 . . . 1 21 . . . . 18 3 1 . 7 14 5 13 Full Trace Events 11 | . 1 . 1 . 5 . . . . 3 . . . . . 1 . . . . . . Feedback Events 2 | . . . . . 2 . . . . . . . . . . . . . . . . . Corruption 2 | . . . . . 2 . . . . . . . . . . . . . . . . . Feedback Blocked . | . . . . . . . . . . . . . . . . . . . . . . . Robot Schematics Acquired 16 | . . . 2 . . . . 6 . 2 . . . . . . . . . 1 3 2 Robots Built . | . . . . . . . . . . . . . . . . . . . . . . . Authchips . | . . . . . . . . . . . . . . . . . . . . . . . Time . | . . . . . . . . . . . . . . . . . . . . . . . Total Robot Build Rating . | . . . . . . . . . . . . . . . . . . . . . . . Part Schematics Acquired 25 | . . . . . 2 . . 12 . 2 . . . . . . . . . 1 6 2 Parts Built 2 | . . . . . . . . . . 2 . . . . . . . . . . . . Authchips . | . . . . . . . . . . . . . . . . . . . . . . . Time 58 | . . . . . . . . . . 58 . . . . . . . . . . . . Total Part Build Rating 14 | . . . . . . . . . . 14 . . . . . . . . . . . . Part Studies Acquired 6 | . . . . . 2 . . . . 2 . . . . 2 . . . . . . . Parts Repaired . | . . . . . . . . . . . . . . . . . . . . . . . Time . | . . . . . . . . . . . . . . . . . . . . . . . Parts Recycled . | . . . . . . . . . . . . . . . . . . . . . . . Recycled Matter . | . . . . . . . . . . . . . . . . . . . . . . . Retrieved Matter . | . . . . . . . . . . . . . . . . . . . . . . . Retrieved Components . | . . . . . . . . . . . . . . . . . . . . . . . Parts Scanalyzed 1 | . . . . . 1 . . . . . . . . . . . . . . . . . Part Schematics Acquired 1 | . . . . . 1 . . . . . . . . . . . . . . . . . Parts Damaged . | . . . . . . . . . . . . . . . . . . . . . . . Bothacking | -11 -10 -10 -9 -9 -6 -6 -6 -6 -5 -5 -5 -5 -5 -4 -4 -4 -4 -4 -4 -3 -3 -3 ------------ Run | Yrd Mat Sub Rec Scr Fac Low Low Dat Pro Fac Upp Upp War Pro Fac Ext Cet Arc Hub Res Qua Frg Used RIF Installer . | . . . . . . . . . . . . . . . . . . . . . . . Robots Hacked 40 | . . . . . . . . . . . . . . . 1 1 . . . 9 5 24 Non-combat . | . . . . . . . . . . . . . . . . . . . . . . . Combat 40 | . . . . . . . . . . . . . . . 1 1 . . . 9 5 24 Robot Hacks Applied . | . . . . . . . . . . . . . . . . . . . . . . . Relay Couplers Released 4 | . . . . . . . . . . . . . . . 2 . . . . . . 2 Machine Destruction 4 | . . . . . . . . . . . . . . . 2 . . . . . . 2 Fabnet Peak Effective % 10 | . . . . . . . . . . . . . . 3 3 3 3 3 3 10 10 10 Autooverrided 40 | . . . . . . . . . . . . . . . 1 1 . . . 9 5 24 Robots Rewired . | . . . . . . . . . . . . . . . . . . . . . . . Allies Hacked 4 | . . . . . . . . . . . . . . . . . . . . . 3 1 Hacks Repelled . | . . . . . . . . . . . . . . . . . . . . . . . Allies | -11 -10 -10 -9 -9 -6 -6 -6 -6 -5 -5 -5 -5 -5 -4 -4 -4 -4 -4 -4 -3 -3 -3 -------- Run | Yrd Mat Sub Rec Scr Fac Low Low Dat Pro Fac Upp Upp War Pro Fac Ext Cet Arc Hub Res Qua Frg Total Allies 89 | . . . . . . 2 . . . 4 . . . . 5 16 5 . 2 13 12 30 Largest Group 11 | . . . . . . 2 . . . 3 . . . . 4 11 6 5 1 3 6 4 Highest-Rated Group 639 | . . . . . . 62 . . . 91 . . . . 72 468 639 531 45 156 359 246 Highest-Rated Ally 159 | . . . . . . 31 . . . 42 . . . . 58 159 159 159 45 64 82 82 Initial UFD Resources 114 | . . . . . 22 46 46 46 48 48 70 70 70 74 74 96 96 96 96 100 114 114 Total Orders 9 | . . . . . . . . . . 5 . . . . . . . . 2 . 2 . STAY 6 | . . . . . . . . . . 3 . . . . . . . . 2 . 1 . FOLLOW 3 | . . . . . . . . . . 2 . . . . . . . . . . 1 . Ally Attacks 275 | . . . . . . 6 . . . 9 . . . . 3 69 29 29 . 14 50 66 Total Damage 8054 | . . . . . . 82 . . . 110 . . . . 45 1552 1359 1158 . 378 1667 1703 Kills 39 | . . . . . . 1 . . . . . . . . 1 8 5 3 . 3 11 7 Allies Corrupted 2 | . . . . . . . . . . . . . . . . . . 1 . . . 1 Allies Melted 3 | . . . . . . . . . . . . . 1 . . . . 1 . 1 . . Intel | -11 -10 -10 -9 -9 -6 -6 -6 -6 -5 -5 -5 -5 -5 -4 -4 -4 -4 -4 -4 -3 -3 -3 ------- Run | Yrd Mat Sub Rec Scr Fac Low Low Dat Pro Fac Upp Upp War Pro Fac Ext Cet Arc Hub Res Qua Frg Active Infowar (turns) 13668 | . 119 1151 573 564 1164 249 336 21 351 1401 516 457 882 258 1138 499 324 120 303 902 535 1805 Terrain 11286 | . . . . 25 1164 249 336 21 351 1401 516 457 882 258 1138 499 324 120 303 902 535 1805 Structural 2382 | . 119 1151 573 539 . . . . . . . . . . . . . . . . . . Machine Analysis 326 | . . . . 326 . . . . . . . . . . . . . . . . . . ID Mask 14 | . . . . . 14 . . . . . . . . . . . . . . . . . Robot Analysis Total 4 | . . . 1 . . . . . . 2 . . . . . . . . . . . 1 Derelict Logs Recovered 16 | . . 1 . 1 . 3 1 . 3 . 2 3 . 2 . . . . . . . . Drone Launches . | . . . . . . . . . . . . . . . . . . . . . . . Drone Recoveries . | . . . . . . . . . . . . . . . . . . . . . . . Exploration | -11 -10 -10 -9 -9 -6 -6 -6 -6 -5 -5 -5 -5 -5 -4 -4 -4 -4 -4 -4 -3 -3 -3 ------------- Run | Yrd Mat Sub Rec Scr Fac Low Low Dat Pro Fac Upp Upp War Pro Fac Ext Cet Arc Hub Res Qua Frg Turns Passed 15857 | 19 773 1151 573 600 1167 251 336 21 351 1401 518 457 882 258 1281 499 324 120 303 902 535 3135 Spaces Moved 29738 | 35 1384 1943 1096 1752 1730 731 963 81 708 2687 920 1091 1315 838 2443 588 261 106 597 1968 1172 5329 Core 231 | 35 196 . . . . . . . . . . . . . . . . . . . . . Treads . | . . . . . . . . . . . . . . . . . . . . . . . Legs . | . . . . . . . . . . . . . . . . . . . . . . . Wheels . | . . . . . . . . . . . . . . . . . . . . . . . Hover . | . . . . . . . . . . . . . . . . . . . . . . . Flight 29507 | . 1188 1943 1096 1752 1730 731 963 81 708 2687 920 1091 1315 838 2443 588 261 106 597 1968 1172 5329 Fastest Speed 14 | 50 37 34 34 29 18 26 26 26 19 15 15 25 14 23 14 14 14 14 14 14 14 14 Average Speed 25 | 50 40 34 34 29 27 26 26 26 25 25 24 25 22 23 22 22 22 22 22 22 22 21 Slowest Speed 50 | 50 50 37 34 34 29 26 26 26 26 26 25 25 25 23 23 23 23 23 50 23 23 23 Overloaded Moves 637 | . . . . . 13 . . . 6 39 1 . 85 . 49 35 26 8 27 13 22 313 Propulsion Burnouts . | . . . . . . . . . . . . . . . . . . . . . . . Robots Hopped 130 | . 9 . 4 . 7 1 . . 1 24 . . 4 . 5 6 2 . 6 35 15 11 Potential Cave-ins 2 | . . . . . . . . . . . . . 2 . . . . . . . . . Cave-ins Triggered . | . . . . . . . . . . . . . . . . . . . . . . . Exploration Rate (%) 76 | 4 98 94 99 94 46 77 85 69 92 55 88 96 94 93 53 75 75 70 49 67 87 88 Regions Visited 22 Branch Regions 17 Pre-discovered Areas 22 | . 1 2 . 4 9 1 . 1 . 3 1 . . . . . . . . . . . Known Exits Taken 13 | . 1 . 1 . 1 1 . . 1 1 1 . . 1 1 1 1 . 1 1 . . Unknown Exits Taken 9 | 1 . 1 . 1 . . 1 1 . . . 1 1 . . . . 1 . . 1 . Scrap Searched 30 | . . 10 . 4 . 3 3 . 4 . 2 3 . 1 . . . . . . . . Spaces Dug 90 | . 1 20 7 4 4 . . . . 6 3 . . . 10 . 1 . 4 12 4 14 Terrain Destroyed 90 | . 1 20 7 4 4 . . . . 6 3 . . . 10 . 1 . 4 12 4 14 Melee 90 | . 1 20 7 4 4 . . . . 6 3 . . . 10 . 1 . 4 12 4 14 Projectile . | . . . . . . . . . . . . . . . . . . . . . . . AOE . | . . . . . . . . . . . . . . . . . . . . . . . Terrain Rammed . | . . . . . . . . . . . . . . . . . . . . . . . Walls Destroyed . | . . . . . . . . . . . . . . . . . . . . . . . Machines Disabled . | . . . . . . . . . . . . . . . . . . . . . . . Actions | -11 -10 -10 -9 -9 -6 -6 -6 -6 -5 -5 -5 -5 -5 -4 -4 -4 -4 -4 -4 -3 -3 -3 --------- Run | Yrd Mat Sub Rec Scr Fac Low Low Dat Pro Fac Upp Upp War Pro Fac Ext Cet Arc Hub Res Qua Frg Total 35981 | 35 1504 2260 1203 1822 2237 775 1021 80 837 3250 1158 1224 1830 887 2970 878 497 187 723 2258 1343 7002 Wait 4259 | . 56 203 45 40 303 31 29 . 79 424 175 81 437 28 335 159 221 66 97 216 87 1147 Move 29476 | 34 1365 1942 1087 1751 1715 728 962 80 705 2641 919 1090 1308 837 2431 577 256 105 585 1910 1142 5306 Hop 105 | . 9 . 4 . 7 1 . . 1 20 . . 2 . 5 4 2 . 5 22 14 9 Pick Up 39 | . 1 4 . 2 1 . . . 2 6 3 1 2 1 2 5 1 . . . . 8 Fast Attach 51 | 1 9 2 1 6 4 1 2 . . 4 2 . . . 4 . . . 1 3 8 3 Attach 14 | . . 1 . 1 2 . . . . 1 1 1 1 1 1 . . . . . 2 2 Detach 6 | . . . . . 1 . . . . . 1 1 . . . . . . 1 . 2 . Swap 38 | . . 2 2 1 9 . . . . 4 1 . 3 . 3 . . . . 3 1 9 Drop 75 | . 3 3 . 5 8 . . . 1 12 5 1 3 . 4 4 1 1 . 3 7 14 Fire . | . . . . . . . . . . . . . . . . . . . . . . . Melee 930 | . 39 74 39 8 99 8 14 . 22 77 27 29 33 8 101 36 14 7 17 62 39 177 Ram . | . . . . . . . . . . . . . . . . . . . . . . . Kick . | . . . . . . . . . . . . . . . . . . . . . . . Crush . | . . . . . . . . . . . . . . . . . . . . . . . Escape Stasis 133 | . . . . . 6 . . . . 1 . . . . 1 30 . . . . . 95 Rewire . | . . . . . . . . . . . . . . . . . . . . . . . Trap . | . . . . . . . . . . . . . . . . . . . . . . . Miscellaneous 855 | . 22 29 25 8 82 6 14 . 27 60 24 20 41 12 83 63 2 8 17 39 41 232 Route ------- -11/Scrapyard -10/Materials (discovered 6 exits: *Mat x3 / *Min x2 / *Sub) -10/Subcaves (discovered 3 exits: *Mat x2 / *Rec) -9/Recycling (discovered 2 exits: [*Fac] / *Scr) -9/Scraptown (discovered 2 exits: *Fac x2) -6/Factory (discovered 6 exits: *Fac x4 / *Low x2) -6/Lower Caves -6/Lower Caves (discovered 2 exits: *Fac / *Dat) -6/Data Miner -5/Proximity Caves -5/Factory (discovered 6 exits: *Fac x4 / *Upp x2) -5/Upper Caves -5/Upper Caves (discovered 2 exits: *Fac / *War) -5/Warlord -4/Proximity Caves -4/Factory (discovered 8 exits: *Res x4 / *Upp x2 / *Ext x2) -4/Extension (discovered 3 exits: *Res x2 / *Cet) -4/Cetus (discovered 2 exits: *Res / *Arc) -4/Archives (discovered 3 exits: Res / *Hub x2) -4/Hub_04(d) (discovered 4 exits: *Res x4) -3/Research (discovered 6 exits: *Res x3 / Arm / *Qua x2) -3/Quarantine (discovered 3 exits: *Res / [*Sec] / *Frg) -3/Protoforge 0bPrime History --------- Turn | Location | Event 13 | -11/Scrapyard | Discovered new exit (range 14) 20 | -11/Scrapyard | Entered Materials 52 | -10/Materials | Discovered new exit (range 6) 99 | -10/Materials | Upgraded with Utility slot (x1) 99 | -10/Materials | Upgraded with Weapon slot (x1) 126 | -10/Materials | Upgraded with Weapon slot (x1) 162 | -10/Materials | Discovered new exit (range 14) 300 | -10/Materials | Destroyed 7 combat bots 321 | -10/Materials | Discovered new exit (range 10) 360 | -10/Materials | Discovered new exit (range 8) 393 | -10/Materials | Discovered new exit (range 15) 437 | -10/Materials | Build established: Gladiator 471 | -10/Materials | Reached level 2 502 | -10/Materials | Upgraded with Propulsion slot (x1) 568 | -10/Materials | Upgraded with Propulsion slot (x1) 598 | -10/Materials | Identified exit to Mines 708 | -10/Materials | Learned Storage trap positions 776 | -10/Materials | Learned Storage stockpile data 782 | -10/Materials | Learned location of Recycling (-9) 784 | -10/Materials | Identified exit to Materials 784 | -10/Materials | Identified exit to Subcaves 785 | -10/Materials | Learned location of 1 exit from Recycling 791 | -10/Materials | Learned 4 Materials zone layouts 793 | -10/Materials | Entered Subcaves 794 | -10/Subcaves | Approached by a straggling Scientist 794 | -10/Subcaves | Identified exit to Materials 795 | -10/Subcaves | Reached level 3 795 | -10/Subcaves | Upgraded with Weapon slot (x1) 922 | -10/Subcaves | Shifting Twisted Machinery released Sub. Beam Cannon 929 | -10/Subcaves | Shifting Twisted Machinery released Barrage Gun 952 | -10/Subcaves | Discovered new exit (range 15) 1096 | -10/Subcaves | Learned location of Zion (-7) 1351 | -10/Subcaves | Visited Clippyterm 1385 | -10/Subcaves | Disturbed a concealed Subdweller 1392 | -10/Subcaves | Disturbed a concealed Subdweller 1401 | -10/Subcaves | Disturbed a concealed Subdweller 1638 | -10/Subcaves | Shifting Twisted Machinery released Mak. Leg 1661 | -10/Subcaves | Core integrity fell below 50% 1688 | -10/Subcaves | Met a Zionite searching for "candidates" 1944 | -10/Subcaves | Entered Recycling 1945 | -9/Recycling | Identified exit to Scraptown 1946 | -9/Recycling | Reached level 4 2004 | -9/Recycling | Discovered new exit (range 9) 2189 | -9/Recycling | Upgraded with Utility slot (x1) 2497 | -9/Recycling | Build established: Scavenger-Gladiator 2509 | -9/Recycling | Scanned before Scraplab entrance 2514 | -9/Recycling | Entered Scraplab 2517 | -9/Recycling | Entered Scraptown 2519 | -9/Scraptown | Reached level 5 2549 | -9/Scraptown | Upgraded with Propulsion slot (x1) 2551 | -9/Scraptown | Upgraded with Utility slot (x1) 2578 | -9/Scraptown | Discovered new exit (range 5) 2597 | -9/Scraptown | Scanned Subdweller tech in exchange for log data 2598 | -9/Scraptown | Learned 12 Factory zone layouts 2603 | -9/Scraptown | Heard Great Nut preacher, LISTEN AND RECITE! 2606 | -9/Scraptown | Visited Cyclists 2612 | -9/Scraptown | Visited Assassins FH 2619 | -9/Scraptown | Visited SPCMW 2631 | -9/Scraptown | Visited CPS Storage 2685 | -9/Scraptown | Visited Symbiants 2705 | -9/Scraptown | Visited Fellowship of the Rings 2712 | -9/Scraptown | Visited Red Mages 2727 | -9/Scraptown | Visited UFD Registry 2727 | -9/Scraptown | Registered with UFD as "Softbomber" 2738 | -9/Scraptown | Entered Cyclist Reading Room 2762 | -9/Scraptown | Visited Chapter 10 2770 | -9/Scraptown | Visited A0-MCA Data Center 2772 | -9/Scraptown | Given a B rating by A0-MCA 2777 | -9/Scraptown | Found A0-MCA's Component Scanner 2784 | -9/Scraptown | Visited Infowarlord's Domain 2807 | -9/Scraptown | Discovered new exit (range 5) 2816 | -9/Scraptown | Visited Cartography Club 2827 | -9/Scraptown | Visited Junk Repository 2836 | -9/Scraptown | Visited Supply Room 2841 | -9/Scraptown | Visited Curators Association 2852 | -9/Scraptown | Build established: Scavenger-Sprinter 2854 | -9/Scraptown | Visited Abandonware Association 2857 | -9/Scraptown | Learned abandonware demo "REPAIR.EXE" 2857 | -9/Scraptown | Learned abandonware demo "SHUTEYE.EXE" 2863 | -9/Scraptown | Visited Observation Area 2876 | -9/Scraptown | Visited Science Guys 2933 | -9/Scraptown | Met Optimus 2933 | -9/Scraptown | Accepted into 0bPrime 2962 | -9/Scraptown | Civil war broke out across Scraptown 3025 | -9/Scraptown | Found Thermal Lance 3038 | -9/Scraptown | Found Surveybot 24 Chip 3056 | -9/Scraptown | Found Exp. Terrain Scanner 3068 | -9/Scraptown | Found ID Mask 3076 | -9/Scraptown | Found Expert System 3100 | -9/Scraptown | Learned location of Proximity Caves (-6) 3100 | -9/Scraptown | Learned location of Extension (-4) 3100 | -9/Scraptown | Learned location of Armory (-3) 3100 | -9/Scraptown | Learned 8 Materials zone layouts 3100 | -9/Scraptown | Learned 12 Research zone layouts 3100 | -9/Scraptown | Learned 4 Recycling zone layouts 3100 | -9/Scraptown | Learned 8 Upper Caves zone layouts 3100 | -9/Scraptown | Learned 16 Proximity Caves zone layouts 3100 | -9/Scraptown | Learned 24 Proximity Caves zone layouts 3100 | -9/Scraptown | Learned 4 Hub_04(d) zone layouts 3100 | -9/Scraptown | Learned Storage emergency access door positions 3100 | -9/Scraptown | Learned location of 2 exits from Factory 3100 | -9/Scraptown | Learned location of 2 exits from Research 3104 | -9/Scraptown | Found Surveybot 17 Chip 3117 | -9/Scraptown | Entered Factory 3118 | -6/Factory | Identified exit to Lower Caves 3119 | -6/Factory | Identified exit to Factory 3119 | -6/Factory | Reached level 6 3127 | -6/Factory | Discovered exit to Factory (range 29) 3163 | -6/Factory | Loaded intel: 8 recycling unit locations 3194 | -6/Factory | Reached level 7 3194 | -6/Factory | Expert System configures itself against Grunt targets 3196 | -6/Factory | Upgraded with Utility slot (x1) 3196 | -6/Factory | ID Mask engaged 3210 | -6/Factory | ID Mask no longer valid 3222 | -6/Factory | Learned location of Protoforge (-3) 3331 | -6/Factory | Build established: Sprinter 3399 | -6/Factory | Learned 2 Upper Caves zone layouts 3424 | -6/Factory | Learned location of 1 exit from Cetus 3431 | -6/Factory | Discovered exit to Factory (range 29) 3437 | -6/Factory | Learned 2 Upper Caves zone layouts 3442 | -6/Factory | Learned location of Upper Caves (-4) 3443 | -6/Factory | Learned 2 Upper Caves zone layouts 3444 | -6/Factory | Learned Hub_04(d) emergency access door positions 3455 | -6/Factory | Learned location of Hub_04(d) (-4) 3476 | -6/Factory | Central database locked down 3486 | -6/Factory | Reached level 8 3663 | -6/Factory | Upgraded with Propulsion slot (x1) 3755 | -6/Factory | Spotted B-75 Beast 3775 | -6/Factory | Destroyed B-75 Beast 3793 | -6/Factory | Core integrity fell below 50% 3807 | -6/Factory | Reached level 9 4039 | -6/Factory | Upgraded with Utility slot (x1) 4092 | -6/Factory | Learned Extension stockpile data 4098 | -6/Factory | Reached level 10 4167 | -6/Factory | First assault squad dispatched 4170 | -6/Factory | Upgraded with Utility slot (x1) 4177 | -6/Factory | Learned location of Warlord (-5) 4187 | -6/Factory | Learned Hub_04(d) emergency access door positions 4188 | -6/Factory | Learned location of 1 exit from Extension 4210 | -6/Factory | Learned 2 Hub_04(d) zone layouts 4238 | -6/Factory | Learned Extension machine intel 4242 | -6/Factory | Garrison activated, responded to threat 4243 | -6/Factory | Reached level 11 4264 | -6/Factory | Destroyed 7 combat bots 4284 | -6/Factory | Entered Lower Caves 4285 | -6/Lower Caves | Identified exit to Lower Caves 4332 | -6/Lower Caves | Learned Factory emergency access door positions 4346 | -6/Lower Caves | Learned Factory emergency access door positions 4355 | -6/Lower Caves | A Commander dispatched an escort 4356 | -6/Lower Caves | Learned 8 Research zone layouts 4356 | -6/Lower Caves | Learned Research trap positions 4451 | -6/Lower Caves | Attracted the attention of an 0b10 checkpoint 4472 | -6/Lower Caves | Reached level 12 4535 | -6/Lower Caves | Entered another Lower Caves area 4535 | -6/Lower Caves | Accompanied by 2 allies 4536 | -6/Lower Caves | Commander's escort returned to base 4536 | -6/Lower Caves | Commander's escort returned to base 4567 | -6/Lower Caves | Discovered new exit (range 25) 4621 | -6/Lower Caves | Learned location of 1 exit from Proximity Caves 4871 | -6/Lower Caves | Entered Data Miner 4871 | -6/Data Miner | Discovered new exit (range 6) 4873 | -6/Data Miner | Reached level 13 4876 | -6/Data Miner | Met Data Miner 4881 | -6/Data Miner | Learned location of Section 7 (-3) 4881 | -6/Data Miner | Acquired the access code to Warlord's prototype stash 4885 | -6/Data Miner | Received God Mode back door access code from Data Miner 4892 | -6/Data Miner | Entered Proximity Caves 4894 | -5/Proximity Caves | Reached level 14 5044 | -5/Proximity Caves | Learned Factory terminal intel 5169 | -5/Proximity Caves | Learned location of 1 exit from Factory 5170 | -5/Proximity Caves | Spotted B-75 Beast 5187 | -5/Proximity Caves | Reached level 15 5187 | -5/Proximity Caves | Destroyed B-75 Beast 5243 | -5/Proximity Caves | Entered Factory 5244 | -5/Factory | Identified exit to Factory 5245 | -5/Factory | Identified exit to Upper Caves 5245 | -5/Factory | Reached level 16 5247 | -5/Factory | Loaded intel: 26 terminal locations 5282 | -5/Factory | Watched by a mysterious "MATRIX" hacker. 5396 | -5/Factory | Spotted B-75 Beast 5441 | -5/Factory | Destroyed B-75 Beast 5478 | -5/Factory | Reached level 17 5492 | -5/Factory | Learned location of 2 exits from Proximity Caves 5519 | -5/Factory | Loaded intel: 8 recycling unit locations 5535 | -5/Factory | Discovered exit to Factory (range 23) 5537 | -5/Factory | Central database locked down 5539 | -5/Factory | Learned Armory non-interactive machine intel 5554 | -5/Factory | Build established: Hacker-Sprinter 5574 | -5/Factory | Discovered exit to Upper Caves (range 30) 5577 | -5/Factory | Learned location of 1 exit from Proximity Caves 5631 | -5/Factory | Learned location of 2 exits from Factory 5644 | -5/Factory | Discovered exit to Factory (range 24) 5648 | -5/Factory | Learned Factory emergency access door positions 5674 | -5/Factory | Learned location of 2 exits from Factory 5711 | -5/Factory | Learned 2 Extension zone layouts 5730 | -5/Factory | Core integrity fell below 50% 5763 | -5/Factory | Upgraded with Utility slot (x1) 5834 | -5/Factory | Reached level 18 5891 | -5/Factory | Upgraded with Utility slot (x1) 5986 | -5/Factory | Fabricated Imp. Phase Shifter? 6046 | -5/Factory | Reached level 19 6337 | -5/Factory | Learned Quarantine emergency access door positions 6411 | -5/Factory | Learned Quarantine emergency access door positions 6526 | -5/Factory | Learned Armory security intel 6569 | -5/Factory | Learned Extension stockpile data 6602 | -5/Factory | Learned 2 Extension zone layouts 6629 | -5/Factory | Reached level 20 6644 | -5/Factory | Entered Upper Caves 6645 | -5/Upper Caves | Identified exit to Upper Caves 6652 | -5/Upper Caves | Attracted the attention of an 0b10 checkpoint 6677 | -5/Upper Caves | Learned Factory stockpile data 6687 | -5/Upper Caves | Destroyed 11 combat bots 6815 | -5/Upper Caves | Learned Factory terminal intel 6817 | -5/Upper Caves | Learned 8 Research zone layouts 6817 | -5/Upper Caves | Learned Factory garrison access intel 6817 | -5/Upper Caves | Learned Armory garrison access intel 6822 | -5/Upper Caves | Attracted the attention of an 0b10 base 6880 | -5/Upper Caves | Destroyed 7 combat bots 6882 | -5/Upper Caves | Encountered a Warlord checkpoint 6960 | -5/Upper Caves | Reached level 21 7009 | -5/Upper Caves | Destroyed 8 combat bots 7086 | -5/Upper Caves | Found Alien Artifact 7086 | -5/Upper Caves | Identified Core Expander 7086 | -5/Upper Caves | Installed Core Expander, added new Utility slot 7162 | -5/Upper Caves | Entered another Upper Caves area 7264 | -5/Upper Caves | Spotted B-75 Beast 7298 | -5/Upper Caves | Destroyed B-75 Beast 7330 | -5/Upper Caves | Discovered new exit (range 21) 7480 | -5/Upper Caves | Attracted the attention of an 0b10 checkpoint 7528 | -5/Upper Caves | Destroyed 11 combat bots 7569 | -5/Upper Caves | Learned Factory garrison access intel 7619 | -5/Upper Caves | Entered Warlord 7621 | -5/Warlord | Reached level 22 7671 | -5/Warlord | Rebuked by Warlord 7689 | -5/Warlord | Visited the Vortex Lab 7691 | -5/Warlord | Warlord's base attacked by MAIN.C 7691 | -5/Warlord | Met EX-DEC 7704 | -5/Warlord | Opened Warlord's prototype stash 7740 | -5/Warlord | Opened side exit 7753 | -5/Warlord | Discovered new exit (range 18) 8041 | -5/Warlord | Warlord forces counterattacked 8117 | -5/Warlord | Destroyed 8 combat bots 8148 | -5/Warlord | Spotted Executioner 8148 | -5/Warlord | Spotted Executioner 8148 | -5/Warlord | Spotted Striker 8189 | -5/Warlord | Lost 10 allies 8296 | -5/Warlord | Lost 5 allies 8366 | -5/Warlord | Warlord base infiltrated, sounded retreat 8477 | -5/Warlord | Found Exp. Core Analyzer 8499 | -5/Warlord | Spotted B-86 Titan 8499 | -5/Warlord | Spotted Executioner 8499 | -5/Warlord | Spotted B-75 Beast 8501 | -5/Warlord | Entered Proximity Caves 8503 | -4/Proximity Caves | Reached level 23 8503 | -4/Proximity Caves | Upgraded with Utility slot (x1) 8580 | -4/Proximity Caves | Spotter reported a threat 8731 | -4/Proximity Caves | Learned Research garrison access intel 8735 | -4/Proximity Caves | Learned Research interactive machine intel 8759 | -4/Proximity Caves | Entered Factory 8760 | -4/Factory | Identified exit to Research 8760 | -4/Factory | Identified exit to Upper Caves 8761 | -4/Factory | Identified exit to Extension 8761 | -4/Factory | Reached level 24 8764 | -4/Factory | Loaded intel: 28 terminal locations 8765 | -4/Factory | Loaded intel: 4 garrison access locations 8815 | -4/Factory | Spotted B-86 Titan 8851 | -4/Factory | Core integrity fell below 50% 8853 | -4/Factory | Destroyed B-86 Titan 8951 | -4/Factory | Reached level 25 8962 | -4/Factory | Upgraded with Utility slot (x1) 8976 | -4/Factory | Loaded intel: 8 recycling unit locations 9113 | -4/Factory | Destroyed 13 combat bots 9268 | -4/Factory | Destroyed 10 combat bots 9397 | -4/Factory | Learned location of 1 exit from Proximity Caves 9425 | -4/Factory | Learned Factory emergency access door positions 9430 | -4/Factory | Declared boring by mysterious "MATRIX" hacker. 9445 | -4/Factory | Learned Factory recycling unit intel 9454 | -4/Factory | Loaded intel: 106 trap records 9455 | -4/Factory | Learned location of 2 exits from Factory 9456 | -4/Factory | Learned Research recycling unit intel 9459 | -4/Factory | Learned Factory trap positions 9474 | -4/Factory | Loaded intel: 6 repair station locations 9475 | -4/Factory | Unchained authorized (1B-0RG) 9617 | -4/Factory | Reached level 26 9689 | -4/Factory | Lost 3 allies 9699 | -4/Factory | Noticed UFD Elites at a Recycling Unit 9878 | -4/Factory | Noticed a derelict Sapper rigging charges 10006 | -4/Factory | Destroyed 7 combat bots 10040 | -4/Factory | Entered Extension 10042 | -4/Extension | Identified exit to Cetus 10045 | -4/Extension | Loaded intel: 39 machine locations 10048 | -4/Extension | Rescued a captive Derelict 10048 | -4/Extension | Rescued a captive Derelict 10080 | -4/Extension | Rescued a captive Derelict 10082 | -4/Extension | Rescued a captive Derelict 10103 | -4/Extension | Rescued a captive Derelict 10104 | -4/Extension | Rescued a captive Derelict 10121 | -4/Extension | Rescued a captive Derelict 10143 | -4/Extension | Rescued a captive Derelict 10143 | -4/Extension | Rescued a captive Derelict 10171 | -4/Extension | Unchained authorized (1B-0RG) 10195 | -4/Extension | Rescued a captive Derelict 10203 | -4/Extension | Local machine network offline 10212 | -4/Extension | Spotted B-86 Titan 10220 | -4/Extension | Destroyed 8 combat bots 10228 | -4/Extension | Spotted B-86 Titan 10263 | -4/Extension | Destroyed B-86 Titan 10269 | -4/Extension | Reached level 27 10269 | -4/Extension | Destroyed B-86 Titan 10290 | -4/Extension | First assault squad dispatched 10314 | -4/Extension | Rescued A7 10346 | -4/Extension | Lost 11 allies 10349 | -4/Extension | Rescued a captive Derelict 10351 | -4/Extension | Rescued a captive Derelict 10385 | -4/Extension | Rescued a captive Derelict 10392 | -4/Extension | Rescued a captive Derelict 10539 | -4/Extension | Entered Cetus 10539 | -4/Cetus | Accompanied by 2 allies (A7) 10540 | -4/Cetus | Identified exit to Archives 10544 | -4/Cetus | Acquired a Cetus Manufacturing Module code from A7 10546 | -4/Cetus | Spotted Cetus Guard 10547 | -4/Cetus | Spotted Cetus Guard 10567 | -4/Cetus | Spotted Cetus Guard 10567 | -4/Cetus | Spotted Cetus Guard 10570 | -4/Cetus | Destroyed Cetus Guard 10579 | -4/Cetus | Destroyed Cetus Guard 10582 | -4/Cetus | Allies destroyed Cetus Guard 10583 | -4/Cetus | Destroyed Cetus Guard 10607 | -4/Cetus | Started Cetus Manufacturing Module 10632 | -4/Cetus | Manufactured an Enhanced Grunt 10657 | -4/Cetus | Manufactured an Enhanced Grunt 10682 | -4/Cetus | Manufactured an Enhanced Grunt 10707 | -4/Cetus | Manufactured an Enhanced Grunt 10732 | -4/Cetus | Manufactured an Enhanced Grunt 10760 | -4/Cetus | Found a strange terminal 10778 | -4/Cetus | Spotted Cetus Guard 10778 | -4/Cetus | Spotted Cetus Guard 10798 | -4/Cetus | Spotted Cetus Guard 10798 | -4/Cetus | Spotted Cetus Guard 10803 | -4/Cetus | Discovered exit to Research (range 15) 10810 | -4/Cetus | Allies destroyed Cetus Guard 10811 | -4/Cetus | Allies destroyed Cetus Guard 10813 | -4/Cetus | Destroyed Cetus Guard 10815 | -4/Cetus | Allies destroyed Cetus Guard 10863 | -4/Cetus | Entered Archives 10863 | -4/Archives | Accompanied by 5 allies (A7) 10866 | -4/Archives | Discovered exit to Research (range 26) 10881 | -4/Archives | Discovered new exit (range 27) 10883 | -4/Archives | Discovered new exit (range 16) 10983 | -4/Archives | Entered Hub_04(d) 10987 | -4/Hub_04(d) | Discovered exit to Research (range 18) 10994 | -4/Hub_04(d) | Discovered exit to Research (range 26) 11000 | -4/Hub_04(d) | Murdered 4 allies 11005 | -4/Hub_04(d) | Discovered exit to Research (range 30) 11111 | -4/Hub_04(d) | Unchained authorized (1B-0RG) 11211 | -4/Hub_04(d) | Network Hub disabled 11212 | -4/Hub_04(d) | Spotted Lightning 11212 | -4/Hub_04(d) | Spotted Lightning 11212 | -4/Hub_04(d) | Spotted Lightning 11226 | -4/Hub_04(d) | Network Hub disabled 11232 | -4/Hub_04(d) | Spotted Lightning 11233 | -4/Hub_04(d) | Spotted Lightning 11233 | -4/Hub_04(d) | Spotted Lightning 11233 | -4/Hub_04(d) | Network Hub disabled 11242 | -4/Hub_04(d) | Network Hub disabled 11286 | -4/Hub_04(d) | Entered Research 11287 | -3/Research | Identified exit to Armory 11287 | -3/Research | Identified exit to Quarantine 11288 | -3/Research | Identified exit to Research 11288 | -3/Research | Reached level 28 11290 | -3/Research | Loaded intel: 78 trap records 11291 | -3/Research | Loaded intel: 44 interactive machine locations 11292 | -3/Research | Loaded intel: 5 recycling unit locations 11293 | -3/Research | Loaded intel: 3 garrison access locations 11293 | -3/Research | Loaded intel: 5 recycling unit locations 11325 | -3/Research | Upgraded with Utility slot (x1) 11461 | -3/Research | Spotted B-86 Titan 11486 | -3/Research | Revision forces began assault on 0b10 11592 | -3/Research | Learned Access terminal intel 11639 | -3/Research | Learned Research interactive machine intel 11646 | -3/Research | Learned Access repair station intel 11647 | -3/Research | Learned Access terminal intel 11648 | -3/Research | Learned 4 Quarantine zone layouts 11649 | -3/Research | Learned Research recycling unit intel 11651 | -3/Research | Learned Access trap positions 11661 | -3/Research | Learned Quarantine stockpile data 11691 | -3/Research | Reached level 29 11896 | -3/Research | Met up with Revision 17++ 11986 | -3/Research | Research terminal network offline 12000 | -3/Research | Local machine network offline 12072 | -3/Research | Spotted Striker 12086 | -3/Research | Destroyed Striker 12120 | -3/Research | Found Exp. Target Analyzer 12188 | -3/Research | Entered Quarantine 12205 | -3/Quarantine | Found Alien Artifact 12205 | -3/Quarantine | Identified Subatomic Replicator 12243 | -3/Quarantine | Spotted Alpha 7 12254 | -3/Quarantine | Destroyed Alpha 7 12386 | -3/Quarantine | Reached level 30 12390 | -3/Quarantine | Upgraded with Utility slot (x1) 12397 | -3/Quarantine | Unchained authorized (6S-H0T) 12417 | -3/Quarantine | Found Alien Impact Weapon 12417 | -3/Quarantine | Identified Core Stripper 12435 | -3/Quarantine | Local machine network offline 12438 | -3/Quarantine | First assault squad dispatched 12543 | -3/Quarantine | Core integrity fell below 50% 12577 | -3/Quarantine | Destroyed 6S-H0T 12589 | -3/Quarantine | Core integrity fell below 20% 12643 | -3/Quarantine | Found Exp. Melee Analysis Suite 12650 | -3/Quarantine | Found Alien Slashing Weapon 12650 | -3/Quarantine | Identified Sigix Broadsword 12708 | -3/Quarantine | Spotted Fortress 12718 | -3/Quarantine | Discovered new exit (range 27) 12720 | -3/Quarantine | Discovered new exit (range 17) 12723 | -3/Quarantine | Entered Protoforge 12724 | -3/Protoforge | Superfortress began startup sequence 12737 | -3/Protoforge | Spotted Hotshot 12737 | -3/Protoforge | Spotted Hotshot 12744 | -3/Protoforge | Destroyed Hotshot 12749 | -3/Protoforge | Destroyed Hotshot 12881 | -3/Protoforge | Spotted B-86 Titan 12897 | -3/Protoforge | Spotted Hotshot 12922 | -3/Protoforge | Spotted Hotshot 12929 | -3/Protoforge | Destroyed Hotshot 12957 | -3/Protoforge | Destroyed Hotshot 12973 | -3/Protoforge | First assault squad dispatched 12974 | -3/Protoforge | Learned Research emergency access door positions 13015 | -3/Protoforge | Learned 4 Research zone layouts 13023 | -3/Protoforge | Spotted Hotshot 13066 | -3/Protoforge | Spotted AP7-3 13066 | -3/Protoforge | Spotted AP7-3 13082 | -3/Protoforge | Spotted Hotshot 13189 | -3/Protoforge | Spotted Immortal 13189 | -3/Protoforge | Spotted Immortal 13206 | -3/Protoforge | Spotted V758-z 13206 | -3/Protoforge | Spotted V310-l 13206 | -3/Protoforge | Spotted V110-g 13206 | -3/Protoforge | Spotted V587-y 13215 | -3/Protoforge | Spotted Decapitator 13215 | -3/Protoforge | Spotted Decapitator 13223 | -3/Protoforge | Destroyed Decapitator 13229 | -3/Protoforge | Destroyed Decapitator 13247 | -3/Protoforge | Destroyed V110-g 13265 | -3/Protoforge | Reached level 31 13316 | -3/Protoforge | Found Cep. Fieldthrust Drive 13353 | -3/Protoforge | Destroyed V587-y 13371 | -3/Protoforge | Destroyed V310-l 13378 | -3/Protoforge | Found Cep. Zero-point Core 13385 | -3/Protoforge | Found Exp. Armor Integrity Analyzer 13410 | -3/Protoforge | Spotted V537-h 13410 | -3/Protoforge | Spotted V317-j 13417 | -3/Protoforge | Spotted Decapitator 13418 | -3/Protoforge | Spotted Decapitator 13419 | -3/Protoforge | Destroyed V537-h 13426 | -3/Protoforge | Destroyed V317-j 13465 | -3/Protoforge | Lost 3 allies 13520 | -3/Protoforge | Destroyed Decapitator 13525 | -3/Protoforge | Destroyed Decapitator 13620 | -3/Protoforge | Destroyed Immortal 13646 | -3/Protoforge | Destroyed Immortal 13781 | -3/Protoforge | Spotted V262-u 13781 | -3/Protoforge | Spotted V608-c 13792 | -3/Protoforge | Incoming assault squad redirected 13804 | -3/Protoforge | Spotted Decapitator 13804 | -3/Protoforge | Spotted Decapitator 13804 | -3/Protoforge | Spotted Decapitator 13804 | -3/Protoforge | Spotted Decapitator 13811 | -3/Protoforge | Spotted V342-d 13811 | -3/Protoforge | Spotted V839-e 13816 | -3/Protoforge | Spotted V708-r 13821 | -3/Protoforge | Found Cep. Melee Reflex Suite 13823 | -3/Protoforge | Found Femtoactuators 13879 | -3/Protoforge | Spotted AP7-3 13879 | -3/Protoforge | Spotted AP7-3 13906 | -3/Protoforge | Additional patrols dispatched to research labs 14035 | -3/Protoforge | Destroyed Decapitator 14038 | -3/Protoforge | Destroyed Decapitator 14041 | -3/Protoforge | Destroyed Decapitator 14048 | -3/Protoforge | Destroyed Decapitator 14065 | -3/Protoforge | Found Exp. Force Field 14068 | -3/Protoforge | Found Cep. Phase Shift Module 14100 | -3/Protoforge | Spotted Decapitator 14100 | -3/Protoforge | Spotted Decapitator 14129 | -3/Protoforge | Destroyed Decapitator 14130 | -3/Protoforge | Destroyed Decapitator 14233 | -3/Protoforge | Spotted EXE-6 14233 | -3/Protoforge | Spotted EXE-6 14235 | -3/Protoforge | Destroyed EXE-6 14247 | -3/Protoforge | Destroyed EXE-6 14341 | -3/Protoforge | UFD initiated attack on Protoforge (Readiness: Low) 14341 | -3/Protoforge | Loaded intel: 3 recycling unit locations 14377 | -3/Protoforge | Optimus greeted in Protoforge 14409 | -3/Protoforge | Spotted Decapitator 14409 | -3/Protoforge | Spotted Decapitator 14417 | -3/Protoforge | Destroyed Decapitator 14423 | -3/Protoforge | Spotted EXE-6 14429 | -3/Protoforge | Spotted Overlord 14443 | -3/Protoforge | Destroyed AP7-3 14446 | -3/Protoforge | Destroyed Overlord 14469 | -3/Protoforge | Lost 7 allies 14521 | -3/Protoforge | Spotted EXE-6 14554 | -3/Protoforge | Destroyed EXE-6 14598 | -3/Protoforge | Spotted Executioner 14598 | -3/Protoforge | Spotted Striker 14605 | -3/Protoforge | Destroyed Striker 14607 | -3/Protoforge | Destroyed Executioner 14607 | -3/Protoforge | UFD reported confirmed Drillbomb installation 14623 | -3/Protoforge | Spotted Striker 14624 | -3/Protoforge | Spotted Striker 14638 | -3/Protoforge | Destroyed Striker 14646 | -3/Protoforge | Spotted Executioner 14652 | -3/Protoforge | Spotted Executioner 14689 | -3/Protoforge | Local machine network offline 14712 | -3/Protoforge | Destroyed B-86 Titan 14731 | -3/Protoforge | Spotted Hotshot 14750 | -3/Protoforge | Spotted Executioner 14793 | -3/Protoforge | Spotted Hotshot 14793 | -3/Protoforge | Spotted Striker 14795 | -3/Protoforge | Spotted Hotshot 14796 | -3/Protoforge | Spotted Hotshot 14798 | -3/Protoforge | Destroyed Hotshot 14801 | -3/Protoforge | Destroyed Hotshot 14835 | -3/Protoforge | Spotted Striker 14840 | -3/Protoforge | UFD reported confirmed Drillbomb installation 14855 | -3/Protoforge | Spotted Striker 14864 | -3/Protoforge | Destroyed Striker 14865 | -3/Protoforge | Destroyed Striker 14890 | -3/Protoforge | Destroyed Hotshot 14892 | -3/Protoforge | Destroyed Hotshot 14894 | -3/Protoforge | Destroyed Striker 14974 | -3/Protoforge | Spotted Striker 14979 | -3/Protoforge | Destroyed Striker 14983 | -3/Protoforge | Spotted Striker 14983 | -3/Protoforge | Destroyed Striker 15024 | -3/Protoforge | UFD reported confirmed Drillbomb installation 15029 | -3/Protoforge | Spotted Executioner 15038 | -3/Protoforge | Spotted Executioner 15044 | -3/Protoforge | Destroyed Executioner 15079 | -3/Protoforge | Destroyed Executioner 15086 | -3/Protoforge | Spotted Executioner 15135 | -3/Protoforge | Spotted Executioner 15135 | -3/Protoforge | Spotted Striker 15143 | -3/Protoforge | Spotted Striker 15149 | -3/Protoforge | Destroyed Striker 15151 | -3/Protoforge | Spotted Executioner 15154 | -3/Protoforge | Destroyed Executioner 15165 | -3/Protoforge | Reached level 32 15185 | -3/Protoforge | Found UFD Drillbomb 15186 | -3/Protoforge | Destroyed 10 combat bots 15206 | -3/Protoforge | Installed UFD Drillbomb at designated target 15206 | -3/Protoforge | UFD reported confirmed Drillbomb installation 15364 | -3/Protoforge | UFD reported confirmed Drillbomb installation 15412 | -3/Protoforge | UFD reported confirmed Drillbomb installation 15490 | -3/Protoforge | Found UFD Drillbomb 15540 | -3/Protoforge | Installed UFD Drillbomb at designated target 15540 | -3/Protoforge | UFD reported confirmed Drillbomb installation 15551 | -3/Protoforge | Lost 4 allies 15580 | -3/Protoforge | Found UFD Drillbomb 15626 | -3/Protoforge | Installed UFD Drillbomb at designated target 15626 | -3/Protoforge | UFD reported confirmed Drillbomb installation 15661 | -3/Protoforge | Found UFD Drillbomb 15708 | -3/Protoforge | Spotted Executioner 15709 | -3/Protoforge | Installed UFD Drillbomb at designated target 15709 | -3/Protoforge | UFD reported confirmed Drillbomb installation 15712 | -3/Protoforge | Destroyed Executioner 15725 | -3/Protoforge | Lost 4 allies 15749 | -3/Protoforge | Found UFD Drillbomb 15758 | -3/Protoforge | UFD reported confirmed Drillbomb installation 15759 | -3/Protoforge | UFD began Drillbomb countdown 15777 | -3/Protoforge | Spotted Striker 15779 | -3/Protoforge | Destroyed Striker 15859 | *** | Defending 0bPrime! Last Messages --------------- 15851_ 0bP_NET: Also Frameworth for that epic save with the barrage of overtuned dakka. Respect the dakka. 15852_ 0bP_NET: And S4-LTN's pet Recycler. I didn't mean it, but I was short on matter and it was a natural reflex. 15853_ 0bP_NET: Oh yeah, T-6 by the way. 15854_ 0bP_NET: LU-1G1, we know you're out there, digging away, so no moment of silence needed for you. 15855_ 0bP_NET: DD-05H though, you were a good one, we'll never forget the way you smashed your way west and just never stopped smashing. 15856_ 0bP_NET: Well my eulogizing is soon to be interrupted by scenes of half of Protoforge collapsing in on itself. Be careful out there. 15857_ 0bP_NET: T-2! 15858_ 0bP_NET: And that's a wrap. [Achievement: 75k Club] [Achievement: Robotopia] Map ----- +----------------------------------------------------+ | % " " ########### | | "" % """" ###"""""### | | " " " " %!%[ """" ###"""""### | | " " "" %!"!/!! ###"" F"### | | " " "!!%!%!%= " " #"" ""# | | """ " % ![%[==%[ % "" #" "# | | " "% %[**![== " % "# " | | " " %%%%![[ ![[ # " | | "" " %"*%%= %% !%[ / " | | ! """ "" !!%!%%% =* " / | | % """ /]%%%= """ # = | | """= " ""%!%% !== "% """ "# " | | """" "" %"%%% % !!%* "# % # | | " """ "% % !|!%% # # | | " " " ""%%%%%%!![!* % "# *%% " | | " " % %%%%![!!"%% /#% = " | | """"""""" %%!%==!!= " %"% " | | """"""""""""""" %%% %%*==%/=*%%" " | | """"""""""""""""" %!%!%[=] =%" ! # | | """""""""""""""""" %%*% %![ %""=[="# | | """"""""""""""""""" %!s%"%]*%%%! !!%""" "# | | """"""""""""""""""""% [%s!!=! ! "%*#"" ""# | | """"""""""""""""""""" !s%% % %* [ ###"F ""### | | """"""""""""""""""""""3j=%* [%! "###"""""### | | """"""""""""""""""""""%%% %%= %%% " "###"""""### | | """"""""""""""""""""""%%%@%%%" % % " ########### | | """""""""""""""""""""""%%%"% %% ! "########### | | """"""""""""""""""""""" SS" %%%"!!!!" "########### | | """"""""""""""""""""""" SS%%% % =%%!" "########### | | """"""""""""""""""""""" % %% %=![" ########### | | """"""""""""""""""""""" % %%*=!![ ########### | | """"""""""""""""""""""" E %%%!%%=! ########### | | """"""""""""""""""""""" !%%=*! %%########## | | """"""""""""""""""""""" "% /= / "" ########## | | """""""""""""""""""""""E" %%= !" %%########### | | """"""""""""""""""""""% "" % ! %%! "########### | | """""""""""""""""""""" E""%%s *%!!* ########### | | """""""""""""""""""""" "%% % " ** ########### | | """"""""""""""""""""" "% s " %==[ ########### | | """""""""""""""""""" s% %% " " =" ########### | | """"""""""""""""""" " " "!" ########### | | """""""""""""""""" * "% " """ ########### | | """"""""""""""""" | %% " ########### | | """"""""""""""" "" % "" ########### | | """"""""" "" " ########### | | "" "" "" """ """ ########### | | """"" " "" "" "" """" ########### | | " " " """" ########### | | " """" """" " " %*"" "" "&######### | | " """ "" """""""""" "&######### | +----------------------------------------------------+ Best States ------------- Heat Dissipation 37 Energy Generation 60 Energy Capacity 1500 Matter Stores 300 Matter Capacity 300 Sight Range 16 Terrain Scan Range 30 Terrain Scan Density 2010 Base Temperature (-) 150 Corruption Block 20 Melee Speed Boost 50 Phase Shifting 25 Evasion (%) 105 Targeting Accuracy 5 Melee Accuracy 16 Target Analysis 10 Core Analysis 8 Armor Integrity Analysis 50 Force Boost 20 Offensive Hacking 20 Defensive Hacking 20 Item Schematics ----------------- Imp. Reaction Control System | -6/Factory | Hacked Actuator Array | -6/Factory | Scanalyzed Combat Drone Bay | -6/Data Miner | Free Lgt. Regenerative Plating | -6/Data Miner | Free Enh. Flexi-carbon Leg | -6/Data Miner | Free Imp. Energy Well | -6/Data Miner | Free Hvy. Gatling Laser | -6/Data Miner | Free Centrium Wheel | -6/Data Miner | Free Adv. Trap Scanner | -6/Data Miner | Free Dispersion Rifle | -6/Data Miner | Free Adv. Hacking Suite | -6/Data Miner | Free Hardcell Cannon | -6/Data Miner | Free Antimatter Reactor | -6/Data Miner | Free Lgt. Particle Reactor | -6/Data Miner | Free Imp. Phase Shifter | -5/Factory | Hacked Adv. System Shield | -5/Factory | Hacked Lgt. Quantum Reactor | -3/Research | Hacked Proton Burst Cannon | -3/Quarantine | Archive Cld. Impulse Thruster | -3/Quarantine | Archive Diametric Drive | -3/Quarantine | Archive Stealth Drone Bay | -3/Quarantine | Archive Exp. Melee Analysis Suite | -3/Quarantine | Archive Cld. Nuclear Pulse Thruster | -3/Quarantine | Archive Exp. Reaction Control System | -3/Protoforge | Hacked Imp. Lightning Gun | -3/Protoforge | Archive Robot Schematics ------------------ Y-45 Defender | -9/Recycling | Hacked A-02 Transporter | -9/Recycling | Hacked S-27 Virus | -6/Data Miner | Free B-48 Gladiator | -6/Data Miner | Free M-36 Artificer | -6/Data Miner | Free W-44 Eye | -6/Data Miner | Free E-15 Imp | -6/Data Miner | Free A-27 Freighter | -6/Data Miner | Free G-50 Soldier | -5/Factory | Hacked Y-64 Sentinel | -5/Factory | Hacked R-06 Scavenger | -3/Research | Hacked Y-72 Warden | -3/Quarantine | Archive S-43 Plague | -3/Quarantine | Archive H-77 Assassin | -3/Quarantine | Archive B-74 Champion | -3/Protoforge | Hacked O-32 Director | -3/Protoforge | Hacked Fabricated ------------ Imp. Phase Shifter | x2 | -5/Factory Repaired ---------- Nothing Studied --------- Flight Unit | -6/Factory | Hacked Maul | -6/Factory | Hacked Nuclear Pulse Thruster | -5/Factory | Hacked Power Maul | -5/Factory | Hacked Lgt. Antimatter Reactor | -4/Factory | Hacked Antimatter Reactor | -4/Factory | Hacked Alien Tech Used ----------------- Core Expander Subatomic Replicator Core Stripper Sigix Broadsword Achievements -------------- 75k Club Bob, First Of His Name Fine I'll Do It Myself Hack The Planet Hulk Smash Look Less Dangerous Next Time Plot Armor Robotopia Sunderer We Are One Well-fed Force Field Challenges ------------ None RPGLIKE | -11 -10 -10 -9 -9 -6 -6 -6 -6 -5 -5 -5 -5 -5 -4 -4 -4 -4 -4 -4 -3 -3 -3 --------- Run | Yrd Mat Sub Rec Scr Fac Low Low Dat Pro Fac Upp Upp War Pro Fac Ext Cet Arc Hub Res Qua Frg Levels Raised 31 | . 1 1 1 1 6 1 . 1 2 5 1 . 1 1 3 1 . . . 2 1 2 XP Earned 50075 | 3000 2030 1700 2225 900 8569 1168 1400 650 2550 7394 1633 1271 1456 1413 3682 1205 336 230 573 2548 1115 3027 XP Spent 48745 | . 4350 1600 800 2200 7470 . . . 500 12650 600 . 2400 2900 3200 . . . . 3500 3800 2775 Upgrades 49 | . 10 2 1 2 8 . . . 1 14 1 . 2 1 1 . . . . 1 1 4 Propulsion Slot 4 | . 2 . . 1 1 . . . . . . . . . . . . . . . . . Utility Slot 12 | . 1 . 1 1 3 . . . . 2 . . . 1 1 . . . . 1 1 . Weapon Slot 3 | . 2 1 . . . . . . . . . . . . . . . . . . . . Heat Dissipation 2 | . . . . . 2 . . . . . . . . . . . . . . . . . Energy Generation 5 | . . . . . 2 . . . . 2 . . 1 . . . . . . . . . Energy Storage 2 | . . . . . . . . . . . . . . . . . . . . . . 2 Mass Support 4 | . 1 . . . . . . . . . 1 . 1 . . . . . . . . 1 Inventory Capacity 3 | . 1 . . . . . . . 1 . . . . . . . . . . . . 1 Melee Accuracy 6 | . 3 1 . . . . . . . 2 . . . . . . . . . . . . Hack Attack % 4 | . . . . . . . . . . 4 . . . . . . . . . . . . Hack Defense % 4 | . . . . . . . . . . 4 . . . . . . . . . . . . Protomatter Created 9041 | . 150 153 170 . 1168 26 111 . 317 943 294 265 473 173 732 786 . . 205 493 253 2329 Integrity Restored 16106 | . 448 585 505 145 1542 91 264 . 507 1195 373 401 826 241 1657 1331 31 192 322 713 842 3895 Core 13148 | . 407 505 430 80 1304 75 223 . 416 964 320 354 618 167 1380 1064 31 192 203 578 687 3150 Parts 2958 | . 41 80 75 65 238 16 41 . 91 231 53 47 208 74 277 267 . . 119 135 155 745 Protomatter Decayed 13809 | . . 4 . 2232 373 51 19 . 34 427 160 124 1224 23 153 377 . . 44 1212 485 6867 Game ------ Seed InterceptLightningNanosword Manual? 0 Play Time 05:42:15 Cumulative 213.1 hours Start 2026.02.26 @ 00:20:29 End 2026.02.28 @ 14:14:35 Sessions 9 Manual Loads 0 Difficulty Rogue Special Mode Winter2019/RPGLIKE Game No. 213 Rogue 213 Adventurer 0 Explorer 0 Win Type 9 Total 15 Types 11/0/1/1/0/0/1/0/0/1 Lore% 69 Gallery% 58 Achievement% 53 Wizard Run 0 Options --------- Layout 2 ASCII 0 Keyboard 0 Movement Numpad Keybinds 0 Fullscreen 1 Font 24/Smallcaps Map View 50x44 Zoom Use 0% Tactical HUD 1 Map Filters NONE Filters NONE Steam 1 RUN: 989caf55-66f1-42df-9608-9a7b7c7cb2a7